Workbook

Sheet Settings
B3: AsOfDate | C3: =TODAY() -> 2019-01-29
B6: Swap Market Conventions
C7: Convention | D7: EUR | E7: USD | F7: GBP | G7: JPY
B8: Fixed Leg | C8: Frequency | D8: ANNUAL | E8: SEMI-ANNUAL | F8: SEMI-ANNUAL | G8: SEMI-ANNUAL
C9: Daycount | D9: 30E/360 | E9: 30/360 | F9: Act/365 | G9: Act/365F
B10: Float Leg | C10: Frequency | D10: SEMI-ANNUAL | E10: QUARTERLY | F10: SEMI-ANNUAL | G10: SEMI-ANNUAL
C11: Daycount | D11: Act/360 | E11: Act/360 | F11: Act/365 | G11: Act/360
B14: Instructions
B15: 1. UPDATING THE WORKBOOK: Refresh each worksheet starting from left to right using Shift-F9. Alternatively use F9 to refresh all worksheets at once.
B16: 2. FORMAT & COLOUR CODING: Yellow boxes are for user input, whilst grey boxes and text in green indicates a formula and should not be modified.
B17: 3. PRICING SWAPS: On the "Swaps" worksheet enter the details in yellow and refresh using Shift-F9
B19: Swap Settings
B20: 1. DISCOUNT FACTORS: Discount Factors can be forced to be 1.0 using the approximation flag in cell C14 on the Swaps worksheet. This simplifies the calculations.
B21: 2. MARKET CONVENTIONS: Swap coupon frequencies can also be annulaized and coupon year fractions forced to 1.0 using the approximation flag in cell C14.

Sheet Discount Factors
B2: Discount Factors | I2: Discount Factor Curves for Pricing | U2: Discount Factor Curves for Risk
B4: Periodicity | C4: 50 | D4: Days
B5: Bump Size | C5: -1 | D5: Bps
B7: Zero Rates | D7: Base | E7: 0.027 | F7: 0.005 | G7: 0 | I7: EUR Discount Factors | L7: USD Discount Factors | O7: GBP Discount Factors | R7: JPY Discount Factors | U7: EUR Bumped Discount Factors | X7: USD Bumped Discount Factors | AA7: GBP Bumped Discount Factors | AD7: JPY Bumped Discount Factors
A8: Row | B8: Date | C8: YearFraction | D8: EUR | E8: USD | F8: GBP | G8: JPY | I8: Date | J8: DiscFact | L8: Date | M8: DiscFact | O8: Date | P8: DiscFact | R8: Date | S8: DiscFact | U8: Date | V8: BumpedDF | X8: Date | Y8: BumpedDF | AA8: Date | AB8: BumpedDF | AD8: Date | AE8: BumpedDF
A9: 1 | B9: =AsOfDate -> 2019-01-29 | C9: 0.002739726027 | D9: -0.005 | E9: =$D9+E$7 -> 0.022 | F9: =$D9+F$7 -> 0 | G9: =$D9+G$7 -> -0.005 | I9: =AsOfDate -> 2019-01-29 | J9: =EXP(-$D9*$C9) -> 1.000013699 | L9: =AsOfDate -> 2019-01-29 | M9: =EXP(-$E9*$C9) -> 0.9999397278 | O9: =AsOfDate -> 2019-01-29 | P9: =EXP(-$F9*$C9) -> 1 | R9: =AsOfDate -> 2019-01-29 | S9: =EXP(-$G9*$C9) -> 1.000013699 | U9: =I9 -> 2019-01-29 | V9: =1/(1+(D9+BumpSize*0.0001))^C9 -> 1.000014008 | X9: =L9 -> 2019-01-29 | Y9: =EXP(-($E9+BumpSize*0.0001)*$C9) -> 0.9999400018 | AA9: =O9 -> 2019-01-29 | AB9: =EXP(-($F9+BumpSize*0.0001)*$C9) -> 1.000000274 | AD9: =R9 -> 2019-01-29 | AE9: =EXP(-($G9+BumpSize*0.0001)*$C9) -> 1.000013973
A10: =A9+1 -> 2 | B10: =B9+Periodicity -> 2019-03-20 | C10: =(B10-AsOfDate)/365 -> 0.1369863014 | D10: =D9+0.0001 -> -0.0049 | E10: =$D10+E$7 -> 0.0221 | F10: 0.0001 | G10: -0.0049 | I10: =I9+Periodicity -> 2019-03-20 | J10: =EXP(-$D10*$C10) -> 1.000671458 | L10: =L9+Periodicity -> 2019-03-20 | M10: =EXP(-$E10*$C10) -> 0.9969771807 | O10: =O9+Periodicity -> 2019-03-20 | P10: =EXP(-$F10*$C10) -> 0.9999863015 | R10: =R9+Periodicity -> 2019-03-20 | S10: =EXP(-$G10*$C10) -> 1.000671458 | U10: 2019-03-20 | V10: 1.000686885 | X10: 2019-03-20 | Y10: 0.996990838 | AA10: 2019-03-20 | AB10: 1 | AD10: 2019-03-20 | AE10: 1.000685166
A11: =A10+1 -> 3 | B11: 2019-05-09 | C11: 0.2739726027 | D11: =D10+0.0001 -> -0.0048 | E11: 0.0222 | F11: 0.0002 | G11: -0.0048 | I11: 2019-05-09 | J11: 1.001315934 | L11: 2019-05-09 | M11: 0.9939362673 | O11: 2019-05-09 | P11: 0.999945207 | R11: 2019-05-09 | S11: 1.001315934 | U11: 2019-05-09 | V11: 1.001346672 | X11: 2019-05-09 | Y11: 0.9939634988 | AA11: 2019-05-09 | AB11: 0.9999726031 | AD11: 2019-05-09 | AE11: 1.001343367
A12: 4 | B12: 2019-06-28 | C12: 0.4109589041 | D12: -0.0047 | E12: 0.0223 | F12: 0.0003 | G12: -0.0047 | I12: 2019-06-28 | J12: 1.001933373 | L12: 2019-06-28 | M12: 0.9908774814 | O12: 2019-06-28 | P12: 0.9998767199 | R12: 2019-06-28 | S12: 1.001933373 | U12: 2019-06-28 | V12: 1.001979308 | X12: 2019-06-28 | Y12: 0.9909182032 | AA12: 2019-06-28 | AB12: 0.9999178116 | AD12: 2019-06-28 | AE12: 1.00197455
A13: 5 | B13: 2019-08-17 | C13: 0.5479452055 | D13: -0.0046 | E13: 0.0224 | F13: 0.0004 | G13: -0.0046 | I13: 2019-08-17 | J13: 1.002523727 | L13: 2019-08-17 | M13: 0.9878010454 | O13: 2019-08-17 | P13: 0.9997808459 | R13: 2019-08-17 | S13: 1.002523727 | U13: 2019-08-17 | V13: 1.002584748 | X13: 2019-08-17 | Y13: 0.9878551729 | AA13: 2019-08-17 | AB13: 0.9998356299 | AD13: 2019-08-17 | AE13: 1.002578662
A14: 6 | B14: 2019-10-06 | C14: 0.6849315068 | D14: -0.0045 | E14: 0.0225 | F14: 0.0005 | G14: -0.0045 | I14: 2019-10-06 | J14: 1.003086947 | L14: 2019-10-06 | M14: 0.9847071823 | O14: 2019-10-06 | P14: 0.9996575929 | R14: 2019-10-06 | S14: 1.003086947 | U14: 2019-10-06 | V14: 1.003162945 | X14: 2019-10-06 | Y14: 0.9847746303 | AA14: 2019-10-06 | AB14: 0.9997260649 | AD14: 2019-10-06 | AE14: 1.003155654
A15: 7 | B15: 2019-11-25 | C15: 0.8219178082 | D15: -0.0044 | E15: 0.0226 | F15: 0.0006 | G15: -0.0044 | I15: 2019-11-25 | J15: 1.003622986 | L15: 2019-11-25 | M15: 0.9815961159 | O15: 2019-11-25 | P15: 0.9995069709 | R15: 2019-11-25 | S15: 1.003622986 | U15: 2019-11-25 | V15: 1.003713856 | X15: 2019-11-25 | Y15: 0.9816767984 | AA15: 2019-11-25 | AB15: 0.9995891255 | AD15: 2019-11-25 | AE15: 1.003705479
A16: 8 | B16: 2020-01-14 | C16: 0.9589041096 | D16: -0.0043 | E16: 0.0227 | F16: 0.0007 | G16: -0.0043 | I16: 2020-01-14 | J16: 1.0041318 | L16: 2020-01-14 | M16: 0.9784680709 | O16: 2020-01-14 | P16: 0.9993289923 | R16: 2020-01-14 | S16: 1.0041318 | U16: 2020-01-14 | V16: 1.00423744 | X16: 2020-01-14 | Y16: 0.9785619012 | AA16: 2020-01-14 | AB16: 0.999424823 | AD16: 2020-01-14 | AE16: 1.004228091
A17: 9 | B17: 2020-03-04 | C17: 1.095890411 | D17: -0.0042 | E17: 0.0228 | F17: 0.0008 | G17: -0.0042 | I17: 2020-03-04 | J17: 1.004613349 | L17: 2020-03-04 | M17: 0.9753232725 | O17: 2020-03-04 | P17: 0.9991236719 | R17: 2020-03-04 | S17: 1.004613349 | U17: 2020-03-04 | V17: 1.004733658 | X17: 2020-03-04 | Y17: 0.9754301631 | AA17: 2020-03-04 | AB17: 0.9992331709 | AD17: 2020-03-04 | AE17: 1.004723449
A18: 10 | B18: 2020-04-23 | C18: 1.232876712 | D18: -0.0041 | E18: 0.0229 | F18: 0.0009 | G18: -0.0041 | I18: 2020-04-23 | J18: 1.005067592 | L18: 2020-04-23 | M18: 0.9721619466 | O18: 2020-04-23 | P18: 0.9988910263 | R18: 2020-04-23 | S18: 1.005067592 | U18: 2020-04-23 | V18: 1.005202473 | X18: 2020-04-23 | Y18: 0.9722818095 | AA18: 2020-04-23 | AB18: 0.9990141849 | AD18: 2020-04-23 | AE18: 1.005191512
A19: 11 | B19: 2020-06-12 | C19: 1.369863014 | D19: -0.004 | E19: 0.023 | F19: 0.001 | G19: -0.004 | I19: 2020-06-12 | J19: 1.005494492 | L19: 2020-06-12 | M19: 0.9689843196 | O19: 2020-06-12 | P19: 0.9986310748 | R19: 2020-06-12 | S19: 1.005494492 | U19: 2020-06-12 | V19: 1.00564385 | X19: 2020-06-12 | Y19: 0.9691170662 | AA19: 2020-06-12 | AB19: 0.998767883 | AD19: 2020-06-12 | AE19: 1.00563224
A20: 12 | B20: 2020-08-01 | C20: 1.506849315 | D20: -0.0039 | E20: 0.0231 | F20: 0.0011 | G20: -0.0039 | I20: 2020-08-01 | J20: 1.005894014 | L20: 2020-08-01 | M20: 0.9657906186 | O20: 2020-08-01 | P20: 0.9983438387 | R20: 2020-08-01 | S20: 1.005894014 | U20: 2020-08-01 | V20: 1.006057759 | X20: 2020-08-01 | Y20: 0.9659361597 | AA20: 2020-08-01 | AB20: 0.9984942854 | AD20: 2020-08-01 | AE20: 1.006045599
A21: 13 | B21: 2020-09-20 | C21: 1.643835616 | D21: -0.0038 | E21: 0.0232 | F21: 0.0012 | G21: -0.0038 | I21: 2020-09-20 | J21: 1.006266126 | L21: 2020-09-20 | M21: 0.9625810714 | O21: 2020-09-20 | P21: 0.9980293416 | R21: 2020-09-20 | S21: 1.006266126 | U21: 2020-09-20 | V21: 1.006444168 | X21: 2020-09-20 | Y21: 0.9627393169 | AA21: 2020-09-20 | AB21: 0.9981934147 | AD21: 2020-09-20 | AE21: 1.006431553
A22: 14 | B22: 2020-11-09 | C22: 1.780821918 | D22: -0.0037 | E22: 0.0233 | F22: 0.0013 | G22: -0.0037 | I22: 2020-11-09 | J22: 1.006610797 | L22: 2020-11-09 | M22: 0.9593559062 | O22: 2020-11-09 | P22: 0.9976876092 | R22: 2020-11-09 | S22: 1.006610797 | U22: 2020-11-09 | V22: 1.00680305 | X22: 2020-11-09 | Y22: 0.9595267657 | AA22: 2020-11-09 | AB22: 0.9978652954 | AD22: 2020-11-09 | AE22: 1.006790072
A23: 15 | B23: 2020-12-29 | C23: 1.917808219 | D23: -0.0036 | E23: 0.0234 | F23: 0.0014 | G23: -0.0036 | I23: 2020-12-29 | J23: 1.006927998 | L23: 2020-12-29 | M23: 0.9561153518 | O23: 2020-12-29 | P23: 0.9973186697 | R23: 2020-12-29 | S23: 1.006927998 | U23: 2020-12-29 | V23: 1.00713438 | X23: 2020-12-29 | Y23: 0.956298734 | AA23: 2020-12-29 | AB23: 0.9975099546 | AD23: 2020-12-29 | AE23: 1.007121126
A24: 16 | B24: 2021-02-17 | C24: 2.054794521 | D24: -0.0035 | E24: 0.0235 | F24: 0.0015 | G24: -0.0035 | I24: 2021-02-17 | J24: 1.007217704 | L24: 2021-02-17 | M24: 0.9528596373 | O24: 2021-02-17 | P24: 0.9969225533 | R24: 2021-02-17 | S24: 1.007217704 | U24: 2021-02-17 | V24: 1.007438134 | X24: 2021-02-17 | Y24: 0.9530554505 | AA24: 2021-02-17 | AB24: 0.9971274214 | AD24: 2021-02-17 | AE24: 1.007424688
A25: 17 | B25: 2021-04-08 | C25: 2.191780822 | D25: -0.0034 | E25: 0.0236 | F25: 0.0016 | G25: -0.0034 | I25: 2021-04-08 | J25: 1.00747989 | L25: 2021-04-08 | M25: 0.9495889926 | O25: 2021-04-08 | P25: 0.9964992925 | R25: 2021-04-08 | S25: 1.00747989 | U25: 2021-04-08 | V25: 1.007714292 | X25: 2021-04-08 | Y25: 0.9497971445 | AA25: 2021-04-08 | AB25: 0.9967177272 | AD25: 2021-04-08 | AE25: 1.007700732
A26: 18 | B26: 2021-05-28 | C26: 2.328767123 | D26: -0.0033 | E26: 0.0237 | F26: 0.0017 | G26: -0.0033 | I26: 2021-05-28 | J26: 1.007714536 | L26: 2021-05-28 | M26: 0.9463036477 | O26: 2021-05-28 | P26: 0.996048922 | R26: 2021-05-28 | S26: 1.007714536 | U26: 2021-05-28 | V26: 1.007962835 | X26: 2021-05-28 | Y26: 0.9465240454 | AA26: 2021-05-28 | AB26: 0.9962809056 | AD26: 2021-05-28 | AE26: 1.007949237
A27: 19 | B27: 2021-07-17 | C27: 2.465753425 | D27: -0.0032 | E27: 0.0238 | F27: 0.0018 | G27: -0.0032 | I27: 2021-07-17 | J27: 1.007921622 | L27: 2021-07-17 | M27: 0.9430038332 | O27: 2021-07-17 | P27: 0.9955714788 | R27: 2021-07-17 | S27: 1.007921622 | U27: 2021-07-17 | V27: 1.008183747 | X27: 2021-07-17 | Y27: 0.9432363833 | AA27: 2021-07-17 | AB27: 0.9958169924 | AD27: 2021-07-17 | AE27: 1.008170182
A28: 20 | B28: 2021-09-05 | C28: 2.602739726 | D28: -0.0031 | E28: 0.0239 | F28: 0.0019 | G28: -0.0031 | I28: 2021-09-05 | J28: 1.008101131 | L28: 2021-09-05 | M28: 0.93968978 | O28: 2021-09-05 | P28: 0.9950670019 | R28: 2021-09-05 | S28: 1.008101131 | U28: 2021-09-05 | V28: 1.008377014 | X28: 2021-09-05 | Y28: 0.9399343886 | AA28: 2021-09-05 | AB28: 0.9953260257 | AD28: 2021-09-05 | AE28: 1.008363548
A29: 21 | B29: 2021-10-25 | C29: 2.739726027 | D29: -0.003 | E29: 0.024 | F29: 0.002 | G29: -0.003 | I29: 2021-10-25 | J29: 1.008253048 | L29: 2021-10-25 | M29: 0.9363617195 | O29: 2021-10-25 | P29: 0.9945355328 | R29: 2021-10-25 | S29: 1.008253048 | U29: 2021-10-25 | V29: 1.008542624 | X29: 2021-10-25 | Y29: 0.9366182921 | AA29: 2021-10-25 | AB29: 0.9948080456 | AD29: 2021-10-25 | AE29: 1.00852932
A30: 22 | B30: 2021-12-14 | C30: 2.876712329 | D30: -0.0029 | E30: 0.0241 | F30: 0.0021 | G30: -0.0029 | I30: 2021-12-14 | J30: 1.008377361 | L30: 2021-12-14 | M30: 0.9330198834 | O30: 2021-12-14 | P30: 0.9939771148 | R30: 2021-12-14 | S30: 1.008377361 | U30: 2021-12-14 | V30: 1.008680568 | X30: 2021-12-14 | Y30: 0.933288325 | AA30: 2021-12-14 | AB30: 0.9942630946 | AD30: 2021-12-14 | AE30: 1.008667484
A31: 23 | B31: 2022-02-02 | C31: 3.01369863 | D31: -0.0028 | E31: 0.0242 | F31: 0.0022 | G31: -0.0028 | I31: 2022-02-02 | J31: 1.008474059 | L31: 2022-02-02 | M31: 0.9296645035 | O31: 2022-02-02 | P31: 0.9933917939 | R31: 2022-02-02 | S31: 1.008474059 | U31: 2022-02-02 | V31: 1.008790838 | X31: 2022-02-02 | Y31: 0.9299447186 | AA31: 2022-02-02 | AB31: 0.9936912173 | AD31: 2022-02-02 | AE31: 1.008778029
A32: 24 | B32: 2022-03-24 | C32: 3.150684932 | D32: -0.0027 | E32: 0.0243 | F32: 0.0023 | G32: -0.0027 | I32: 2022-03-24 | J32: 1.008543135 | L32: 2022-03-24 | M32: 0.9262958121 | O32: 2022-03-24 | P32: 0.9927796178 | R32: 2022-03-24 | S32: 1.008543135 | U32: 2022-03-24 | V32: 1.008873429 | X32: 2022-03-24 | Y32: 0.9265877047 | AA32: 2022-03-24 | AB32: 0.9930924606 | AD32: 2022-03-24 | AE32: 1.008860946
A33: 25 | B33: 2022-05-13 | C33: 3.287671233 | D33: -0.0026 | E33: 0.0244 | F33: 0.0024 | G33: -0.0026 | I33: 2022-05-13 | J33: 1.008584583 | L33: 2022-05-13 | M33: 0.9229140417 | O33: 2022-05-13 | P33: 0.9921406366 | R33: 2022-05-13 | S33: 1.008584583 | U33: 2022-05-13 | V33: 1.008928339 | X33: 2022-05-13 | Y33: 0.9232175154 | AA33: 2022-05-13 | AB33: 0.9924668735 | AD33: 2022-05-13 | AE33: 1.008916227
A34: 26 | B34: 2022-07-02 | C34: 3.424657534 | D34: -0.0025 | E34: 0.0245 | F34: 0.0025 | G34: -0.0025 | I34: 2022-07-02 | J34: 1.0085984 | L34: 2022-07-02 | M34: 0.919519425 | O34: 2022-07-02 | P34: 0.9914749027 | R34: 2022-07-02 | S34: 1.0085984 | U34: 2022-07-02 | V34: 1.008955568 | X34: 2022-07-02 | Y34: 0.9198343828 | AA34: 2022-07-02 | AB34: 0.991814507 | AD34: 2022-07-02 | AE34: 1.008943869
A35: 27 | B35: 2022-08-21 | C35: 3.561643836 | D35: -0.0024 | E35: 0.0246 | F35: 0.0026 | G35: -0.0024 | I35: 2022-08-21 | J35: 1.008584583 | L35: 2022-08-21 | M35: 0.9161121948 | O35: 2022-08-21 | P35: 0.9907824703 | R35: 2022-08-21 | S35: 1.008584583 | U35: 2022-08-21 | V35: 1.008955118 | X35: 2022-08-21 | Y35: 0.9164385395 | AA35: 2022-08-21 | AB35: 0.9911354146 | AD35: 2022-08-21 | AE35: 1.008943869
A36: 28 | B36: 2022-10-10 | C36: 3.698630137 | D36: -0.0023 | E36: 0.0247 | F36: 0.0027 | G36: -0.0023 | I36: 2022-10-10 | J36: 1.008543135 | L36: 2022-10-10 | M36: 0.9126925844 | O36: 2022-10-10 | P36: 0.9900633962 | R36: 2022-10-10 | S36: 1.008543135 | U36: 2022-10-10 | V36: 1.008926991 | X36: 2022-10-10 | Y36: 0.9130302181 | AA36: 2022-10-10 | AB36: 0.9904296517 | AD36: 2022-10-10 | AE36: 1.008916227
A37: 29 | B37: 2022-11-29 | C37: 3.835616438 | D37: -0.0022 | E37: 0.0248 | F37: 0.0028 | G37: -0.0022 | I37: 2022-11-29 | J37: 1.008474059 | L37: 2022-11-29 | M37: 0.9092608269 | O37: 2022-11-29 | P37: 0.9893177389 | R37: 2022-11-29 | S37: 1.008474059 | U37: 2022-11-29 | V37: 1.008871196 | X37: 2022-11-29 | Y37: 0.9096096514 | AA37: 2022-11-29 | AB37: 0.989697276 | AD37: 2022-11-29 | AE37: 1.008860946
A38: 30 | B38: 2023-01-18 | C38: 3.97260274 | D38: -0.0021 | E38: 0.0249 | F38: 0.0029 | G38: -0.0021 | I38: 2023-01-18 | J38: 1.008377361 | L38: 2023-01-18 | M38: 0.9058171557 | O38: 2023-01-18 | P38: 0.9885455595 | R38: 2023-01-18 | S38: 1.008377361 | U38: 2023-01-18 | V38: 1.008787741 | X38: 2023-01-18 | Y38: 0.9061770723 | AA38: 2023-01-18 | AB38: 0.9889383474 | AD38: 2023-01-18 | AE38: 1.008778029
A39: 31 | B39: 2023-03-09 | C39: 4.109589041 | D39: -0.002 | E39: 0.025 | F39: 0.003 | G39: -0.002 | I39: 2023-03-09 | J39: 1.008253048 | L39: 2023-03-09 | M39: 0.9023618042 | O39: 2023-03-09 | P39: 0.9877469208 | R39: 2023-03-09 | S39: 1.008253048 | U39: 2023-03-09 | V39: 1.008676637 | X39: 2023-03-09 | Y39: 0.902732714 | AA39: 2023-03-09 | AB39: 0.9881529276 | AD39: 2023-03-09 | AE39: 1.008667484
A40: 32 | B40: 2023-04-28 | C40: 4.246575342 | D40: -0.0019 | E40: 0.0251 | F40: 0.0031 | G40: -0.0019 | I40: 2023-04-28 | J40: 1.008101131 | L40: 2023-04-28 | M40: 0.898895006 | O40: 2023-04-28 | P40: 0.986921888 | R40: 2023-04-28 | S40: 1.008101131 | U40: 2023-04-28 | V40: 1.008537897 | X40: 2023-04-28 | Y40: 0.8992768096 | AA40: 2023-04-28 | AB40: 0.9873410808 | AD40: 2023-04-28 | AE40: 1.00852932
A41: 33 | B41: 2023-06-17 | C41: 4.383561644 | D41: -0.0018 | E41: 0.0252 | F41: 0.0032 | G41: -0.0018 | I41: 2023-06-17 | J41: 1.007921622 | L41: 2023-06-17 | M41: 0.8954169946 | O41: 2023-06-17 | P41: 0.9860705283 | R41: 2023-06-17 | S41: 1.007921622 | U41: =I41 -> 2023-06-17 | V41: =1/(1+(D41+BumpSize*0.0001))^C41 -> 1.008371536 | X41: =L41 -> 2023-06-17 | Y41: =EXP(-($E41+BumpSize*0.0001)*$C41) -> 0.8958095922 | AA41: =O41 -> 2023-06-17 | AB41: =EXP(-($F41+BumpSize*0.0001)*$C41) -> 0.9865028731 | AD41: =R41 -> 2023-06-17 | AE41: =EXP(-($G41+BumpSize*0.0001)*$C41) -> 1.008363548
A42: 34 | B42: 2023-08-06 | C42: =(B42-AsOfDate)/365 -> 4.520547945 | D42: -0.0017 | E42: =$D42+E$7 -> 0.0253 | F42: 0.0033 | G42: -0.0017 | I42: =I41+Periodicity -> 2023-08-06 | J42: 1.007714536 | L42: =L41+Periodicity -> 2023-08-06 | M42: 0.8919280037 | O42: =O41+Periodicity -> 2023-08-06 | P42: 0.985192911 | R42: =R41+Periodicity -> 2023-08-06 | S42: 1.007714536 | U42: 2023-08-06 | V42: 1.008177574 | X42: 2023-08-06 | Y42: 0.8923312952 | AA42: 2023-08-06 | AB42: 0.9856383729 | AD42: 2023-08-06 | AE42: 1.008170182
A43: 35 | B43: 2023-09-25 | C43: 4.657534247 | D43: -0.0016 | E43: 0.0254 | F43: 0.0034 | G43: -0.0016 | I43: 2023-09-25 | J43: 1.00747989 | L43: 2023-09-25 | M43: 0.8884282668 | O43: 2023-09-25 | P43: 0.9842891077 | R43: 2023-09-25 | S43: 1.00747989 | U43: 2023-09-25 | V43: 1.007956028 | X43: 2023-09-25 | Y43: 0.8888421516 | AA43: 2023-09-25 | AB43: 0.9847476505 | AD43: 2023-09-25 | AE43: 1.007949237
A44: 36 | B44: 2023-11-14 | C44: 4.794520548 | D44: -0.0015 | E44: 0.0255 | F44: 0.0035 | G44: -0.0015 | I44: 2023-11-14 | J44: 1.007217704 | L44: 2023-11-14 | M44: 0.8849180174 | O44: 2023-11-14 | P44: 0.9833591918 | R44: 2023-11-14 | S44: 1.007217704 | U44: 2023-11-14 | V44: 1.007706923 | X44: 2023-11-14 | Y44: 0.8853423949 | AA44: 2023-11-14 | AB44: 0.9838307784 | AD44: 2023-11-14 | AE44: 1.007700732
A45: 37 | B45: 2024-01-03 | C45: 4.931506849 | D45: -0.0014 | E45: 0.0256 | F45: 0.0036 | G45: -0.0014 | I45: 2024-01-03 | J45: 1.006927998 | L45: 2024-01-03 | M45: 0.8813974891 | O45: 2024-01-03 | P45: 0.9824032389 | R45: 2024-01-03 | S45: 1.006927998 | U45: 2024-01-03 | V45: 1.007430282 | X45: 2024-01-03 | Y45: 0.8818322581 | AA45: 2024-01-03 | AB45: 0.9828878312 | AD45: 2024-01-03 | AE45: 1.007424688
A46: 38 | B46: 2024-02-22 | C46: 5.068493151 | D46: -0.0013 | E46: 0.0257 | F46: 0.0037 | G46: -0.0013 | I46: 2024-02-22 | J46: 1.006610797 | L46: 2024-02-22 | M46: 0.8778669153 | O46: 2024-02-22 | P46: 0.9814213267 | R46: 2024-02-22 | S46: 1.006610797 | U46: 2024-02-22 | V46: 1.007126133 | X46: 2024-02-22 | Y46: 0.8783119743 | AA46: 2024-02-22 | AB46: 0.9819188855 | AD46: 2024-02-22 | AE46: 1.007121126
A47: 39 | B47: 2024-04-12 | C47: 5.205479452 | D47: -0.0012 | E47: 0.0258 | F47: 0.0038 | G47: -0.0012 | I47: 2024-04-12 | J47: 1.006266126 | L47: 2024-04-12 | M47: 0.8743265292 | O47: 2024-04-12 | P47: 0.9804135349 | R47: 2024-04-12 | S47: 1.006266126 | U47: 2024-04-12 | V47: 1.006794504 | X47: 2024-04-12 | Y47: 0.8747817766 | AA47: 2024-04-12 | AB47: 0.98092402 | AD47: 2024-04-12 | AE47: 1.006790072
A48: 40 | B48: 2024-06-01 | C48: 5.342465753 | D48: -0.0011 | E48: 0.0259 | F48: 0.0039 | G48: -0.0011 | I48: 2024-06-01 | J48: 1.005894014 | L48: 2024-06-01 | M48: 0.8707765641 | O48: 2024-06-01 | P48: 0.9793799453 | R48: 2024-06-01 | S48: 1.005894014 | U48: 2024-06-01 | V48: 1.006435428 | X48: 2024-06-01 | Y48: 0.8712418978 | AA48: 2024-06-01 | AB48: 0.9799033155 | AD48: 2024-06-01 | AE48: 1.006431553
A49: 41 | B49: 2024-07-21 | C49: 5.479452055 | D49: -0.001 | E49: 0.026 | F49: 0.004 | G49: -0.001 | I49: 2024-07-21 | J49: 1.005494492 | L49: 2024-07-21 | M49: 0.867217253 | O49: 2024-07-21 | P49: 0.9783206417 | R49: 2024-07-21 | S49: 1.005494492 | U49: 2024-07-21 | V49: 1.006048936 | X49: 2024-07-21 | Y49: 0.8676925708 | AA49: 2024-07-21 | AB49: 0.9788568547 | AD49: 2024-07-21 | AE49: 1.006045599
A50: 42 | B50: 2024-09-09 | C50: 5.616438356 | D50: -0.0009 | E50: 0.0261 | F50: 0.0041 | G50: -0.0009 | I50: 2024-09-09 | J50: 1.005067592 | L50: 2024-09-09 | M50: 0.8636488287 | O50: 2024-09-09 | P50: 0.9772357098 | R50: 2024-09-09 | S50: 1.005067592 | U50: 2024-09-09 | V50: 1.005635066 | X50: 2024-09-09 | Y50: 0.864134028 | AA50: 2024-09-09 | AB50: 0.9777847224 | AD50: 2024-09-09 | AE50: 1.00563224
A51: 43 | B51: 2024-10-29 | C51: 5.753424658 | D51: -0.0008 | E51: 0.0262 | F51: 0.0042 | G51: -0.0008 | I51: 2024-10-29 | J51: 1.004613349 | L51: 2024-10-29 | M51: 0.8600715238 | O51: 2024-10-29 | P51: 0.9761252376 | R51: 2024-10-29 | S51: 1.004613349 | U51: 2024-10-29 | V51: 1.005193855 | X51: 2024-10-29 | Y51: 0.8605665018 | AA51: 2024-10-29 | AB51: 0.9766870055 | AD51: 2024-10-29 | AE51: 1.005191512
A52: 44 | B52: 2024-12-18 | C52: 5.890410959 | D52: -0.0007 | E52: 0.0263 | F52: 0.0043 | G52: -0.0007 | I52: 2024-12-18 | J52: 1.0041318 | L52: 2024-12-18 | M52: 0.8564855707 | O52: 2024-12-18 | P52: 0.9749893149 | R52: 2024-12-18 | S52: 1.0041318 | U52: 2024-12-18 | V52: 1.004725344 | X52: 2024-12-18 | Y52: 0.8569902245 | AA52: 2024-12-18 | AB52: 0.9755637929 | AD52: 2024-12-18 | AE52: 1.004723449
A53: 45 | B53: 2025-02-06 | C53: 6.02739726 | D53: -0.0006 | E53: 0.0264 | F53: 0.0044 | G53: -0.0006 | I53: 2025-02-06 | J53: 1.003622986 | L53: 2025-02-06 | M53: 0.8528912015 | O53: 2025-02-06 | P53: 0.9738280335 | R53: 2025-02-06 | S53: 1.003622986 | U53: 2025-02-06 | V53: 1.004229575 | X53: 2025-02-06 | Y53: 0.8534054279 | AA53: 2025-02-06 | AB53: 0.9744151752 | AD53: 2025-02-06 | AE53: 1.004228091
A54: 46 | B54: 2025-03-28 | C54: 6.164383562 | D54: -0.0005 | E54: 0.0265 | F54: 0.0045 | G54: -0.0005 | I54: 2025-03-28 | J54: 1.003086947 | L54: 2025-03-28 | M54: 0.8492886482 | O54: 2025-03-28 | P54: 0.9726414871 | R54: 2025-03-28 | S54: 1.003086947 | U54: 2025-03-28 | V54: 1.003706593 | X54: 2025-03-28 | Y54: 0.8498123437 | AA54: 2025-03-28 | AB54: 0.9732412455 | AD54: 2025-03-28 | AE54: 1.003705479
A55: 47 | B55: 2025-05-17 | C55: 6.301369863 | D55: -0.0004 | E55: 0.0266 | F55: 0.0046 | G55: -0.0004 | I55: 2025-05-17 | J55: 1.002523727 | L55: 2025-05-17 | M55: 0.8456781422 | O55: 2025-05-17 | P55: 0.9714297716 | R55: 2025-05-17 | S55: 1.002523727 | U55: 2025-05-17 | V55: 1.003156444 | X55: 2025-05-17 | Y55: 0.8462112032 | AA55: 2025-05-17 | AB55: 0.9720420984 | AD55: 2025-05-17 | AE55: 1.003155654
A56: 48 | B56: 2025-07-06 | C56: 6.438356164 | D56: -0.0003 | E56: 0.0267 | F56: 0.0047 | G56: -0.0003 | I56: 2025-07-06 | J56: 1.001933373 | L56: 2025-07-06 | M56: 0.8420599148 | O56: 2025-07-06 | P56: 0.9701929847 | R56: 2025-07-06 | S56: 1.001933373 | U56: 2025-07-06 | V56: 1.002579178 | X56: 2025-07-06 | Y56: 0.8426022375 | AA56: 2025-07-06 | AB56: 0.9708178306 | AD56: 2025-07-06 | AE56: 1.002578662
A57: =A56+1 -> 49 | B57: 2025-08-25 | C57: 6.575342466 | D57: -0.0002 | E57: 0.0268 | F57: 0.0048 | G57: -0.0002 | I57: 2025-08-25 | J57: 1.001315934 | L57: 2025-08-25 | M57: 0.8384341968 | O57: 2025-08-25 | P57: 0.968931226 | R57: 2025-08-25 | S57: 1.001315934 | U57: 2025-08-25 | V57: 1.001974846 | X57: 2025-08-25 | Y57: 0.8389856773 | AA57: 2025-08-25 | AB57: 0.9695685409 | AD57: 2025-08-25 | AE57: 1.00197455
A58: 50 | B58: 2025-10-14 | C58: 6.712328767 | D58: -0.0001 | E58: 0.0269 | F58: 0.0049 | G58: -0.0001 | I58: 2025-10-14 | J58: 1.000671458 | L58: 2025-10-14 | M58: 0.8348012188 | O58: 2025-10-14 | P58: 0.967644597 | R58: 2025-10-14 | S58: 1.000671458 | U58: 2025-10-14 | V58: 1.001343502 | X58: 2025-10-14 | Y58: 0.8353617529 | AA58: 2025-10-14 | AB58: 0.9682943299 | AD58: 2025-10-14 | AE58: 1.001343367
A59: 51 | B59: 2025-12-03 | C59: 6.849315068 | D59: -2.439454888e-19 | E59: 0.027 | F59: 0.005 | G59: -2.439454888e-19 | I59: 2025-12-03 | J59: 1 | L59: 2025-12-03 | M59: 0.8311612108 | O59: 2025-12-03 | P59: 0.9663332013 | R59: 2025-12-03 | S59: 1 | U59: 2025-12-03 | V59: 1.0006852 | X59: 2025-12-03 | Y59: 0.8317306943 | AA59: 2025-12-03 | AB59: 0.9669953001 | AD59: 2025-12-03 | AE59: 1.000685166
A60: 52 | B60: 2026-01-22 | C60: 6.98630137 | D60: 0.0001 | E60: 0.0271 | F60: 0.0051 | G60: 0.0001 | I60: 2026-01-22 | J60: 0.9993016138 | L60: 2026-01-22 | M60: 0.8275144024 | O60: 2026-01-22 | P60: 0.9649971442 | R60: 2026-01-22 | S60: 0.9993016138 | U60: 2026-01-22 | V60: 1 | X60: 2026-01-22 | Y60: 0.8280927309 | AA60: 2026-01-22 | AB60: 0.9656715559 | AD60: 2026-01-22 | AE60: 1
A61: 53 | B61: 2026-03-13 | C61: 7.123287671 | D61: 0.0002 | E61: 0.0272 | F61: 0.0052 | G61: 0.0002 | I61: 2026-03-13 | J61: 0.9985763568 | L61: 2026-03-13 | M61: 0.823861023 | O61: 2026-03-13 | P61: 0.963636533 | R61: 2026-03-13 | S61: 0.9985763568 | U61: 2026-03-13 | V61: 0.9992879605 | X61: 2026-03-13 | Y61: 0.824448092 | AA61: 2026-03-13 | AB61: 0.9643232036 | AD61: 2026-03-13 | AE61: 0.9992879249
A62: 54 | B62: 2026-05-02 | C62: 7.260273973 | D62: 0.0003 | E62: 0.0273 | F62: 0.0053 | G62: 0.0003 | I62: 2026-05-02 | J62: 0.9978242881 | L62: 2026-05-02 | M62: 0.8202013013 | O62: 2026-05-02 | P62: 0.9622514768 | R62: 2026-05-02 | S62: 0.9978242881 | U62: 2026-05-02 | V62: 0.9985491439 | X62: 2026-05-02 | Y62: 0.8207970061 | AA62: 2026-05-02 | AB62: 0.9629503514 | AD62: 2026-05-02 | AE62: 0.9985489989
A63: 55 | B63: 2026-06-21 | C63: 7.397260274 | D63: 0.0004 | E63: 0.0274 | F63: 0.0054 | G63: 0.0004 | I63: 2026-06-21 | J63: 0.9970454691 | L63: 2026-06-21 | M63: 0.8165354655 | O63: 2026-06-21 | P63: 0.9608420866 | R63: 2026-06-21 | S63: 0.9970454691 | U63: 2026-06-21 | V63: 0.9977836145 | X63: 2026-06-21 | Y63: 0.8171397015 | AA63: 2026-06-21 | AB63: 0.9615531094 | AD63: 2026-06-21 | AE63: 0.9977832825
A64: 56 | B64: 2026-08-10 | C64: 7.534246575 | D64: 0.0005 | E64: 0.0275 | F64: 0.0055 | G64: 0.0005 | I64: 2026-08-10 | J64: 0.9962399634 | L64: 2026-08-10 | M64: 0.8128637434 | O64: 2026-08-10 | P64: 0.9594084751 | R64: 2026-08-10 | S64: 0.9962399634 | U64: 2026-08-10 | V64: 0.9969914388 | X64: 2026-08-10 | Y64: 0.8134764057 | AA64: 2026-08-10 | AB64: 0.9601315895 | AD64: 2026-08-10 | AE64: 0.996990838
A65: 57 | B65: 2026-09-29 | C65: 7.671232877 | D65: 0.0006 | E65: 0.0276 | F65: 0.0056 | G65: 0.0006 | I65: 2026-09-29 | J65: 0.9954078366 | L65: 2026-09-29 | M65: 0.8091863621 | O65: 2026-09-29 | P65: 0.9579507571 | R65: 2026-09-29 | S65: 0.9954078366 | U65: 2026-09-29 | V65: 0.9961726851 | X65: 2026-09-29 | Y65: 0.809807346 | AA65: 2026-09-29 | AB65: 0.9586859054 | AD65: 2026-09-29 | AE65: 0.9961717301
A66: 58 | B66: 2026-11-18 | C66: 7.808219178 | D66: 0.0007 | E66: 0.0277 | F66: 0.0057 | G66: 0.0007 | I66: 2026-11-18 | J66: 0.9945491566 | L66: 2026-11-18 | M66: 0.8055035483 | O66: 2026-11-18 | P66: 0.9564690489 | R66: 2026-11-18 | S66: 0.9945491566 | U66: 2026-11-18 | V66: 0.995327424 | X66: 2026-11-18 | Y66: 0.8061327488 | AA66: 2026-11-18 | AB66: 0.9572161726 | AD66: 2026-11-18 | AE66: 0.9953260257
A67: 59 | B67: 2027-01-07 | C67: 7.945205479 | D67: 0.0008 | E67: 0.0278 | F67: 0.0058 | G67: 0.0008 | I67: 2027-01-07 | J67: 0.9936639933 | L67: 2027-01-07 | M67: 0.8018155282 | O67: 2027-01-07 | P67: 0.9549634688 | R67: 2027-01-07 | S67: 0.9936639933 | U67: 2027-01-07 | V67: 0.9944557284 | X67: 2027-01-07 | Y67: 0.8024528402 | AA67: 2027-01-07 | AB67: 0.9557225084 | AD67: 2027-01-07 | AE67: 0.9944537935
A68: 60 | B68: 2027-02-26 | C68: 8.082191781 | D68: 0.0009 | E68: 0.0279 | F68: 0.0059 | G68: 0.0009 | I68: 2027-02-26 | J68: 0.9927524187 | L68: 2027-02-26 | M68: 0.798122527 | O68: 2027-02-26 | P68: 0.9534341368 | R68: 2027-02-26 | S68: 0.9927524187 | U68: 2027-02-26 | V68: 0.9935576728 | X68: 2027-02-26 | Y68: 0.7987678457 | AA68: 2027-02-26 | AB68: 0.9542050321 | AD68: 2027-02-26 | AE68: 0.9935551046
A69: 61 | B69: 2027-04-17 | C69: 8.219178082 | D69: 0.001 | E69: 0.028 | F69: 0.006 | G69: 0.001 | I69: 2027-04-17 | J69: 0.991814507 | L69: 2027-04-17 | M69: 0.7944247697 | O69: 2027-04-17 | P69: 0.9518811747 | R69: 2027-04-17 | S69: 0.991814507 | U69: 2027-04-17 | V69: 0.9926333344 | X69: 2027-04-17 | Y69: 0.79507799 | AA69: 2027-04-17 | AB69: 0.9526638644 | AD69: 2027-04-17 | AE69: 0.9926300321
A70: 62 | B70: 2027-06-06 | C70: 8.356164384 | D70: 0.0011 | E70: 0.0281 | F70: 0.0061 | G70: 0.0011 | I70: 2027-06-06 | J70: 0.9908503345 | L70: 2027-06-06 | M70: 0.7907224805 | O70: 2027-06-06 | P70: 0.9503047059 | R70: 2027-06-06 | S70: 0.9908503345 | U70: 2027-06-06 | V70: 0.9916827919 | X70: 2027-06-06 | Y70: 0.7913834973 | AA70: 2027-06-06 | AB70: 0.951099128 | AD70: 2027-06-06 | AE70: 0.9916786513
A71: 63 | B71: 2027-07-26 | C71: 8.493150685 | D71: 0.0012 | E71: 0.0282 | F71: 0.0062 | G71: 0.0012 | I71: 2027-07-26 | J71: 0.9898599794 | L71: 2027-07-26 | M71: 0.7870158828 | O71: 2027-07-26 | P71: 0.9487048558 | R71: 2027-07-26 | S71: 0.9898599794 | U71: 2027-07-26 | V71: 0.9907061264 | X71: 2027-07-26 | Y71: 0.7876845912 | AA71: 2027-07-26 | AB71: 0.9495109474 | AD71: 2027-07-26 | AE71: 0.9907010395
A72: 64 | B72: 2027-09-14 | C72: 8.630136986 | D72: 0.0013 | E72: 0.0283 | F72: 0.0063 | G72: 0.0013 | I72: 2027-09-14 | J72: 0.9888435222 | L72: 2027-09-14 | M72: 0.7833051995 | O72: 2027-09-14 | P72: 0.9470817512 | R72: 2027-09-14 | S72: 0.9888435222 | U72: 2027-09-14 | V72: 0.9897034208 | X72: 2027-09-14 | Y72: 0.7839814944 | AA72: 2027-09-14 | AB72: 0.9478994485 | AD72: 2027-09-14 | AE72: 0.989697276
A73: 65 | B73: 2027-11-03 | C73: 8.767123288 | D73: 0.0014 | E73: 0.0284 | F73: 0.0064 | G73: 0.0014 | I73: 2027-11-03 | J73: 0.9878010454 | L73: 2027-11-03 | M73: 0.7795906526 | O73: 2027-11-03 | P73: 0.9454355208 | R73: 2027-11-03 | S73: 0.9878010454 | U73: =I73 -> 2027-11-03 | V73: =1/(1+(D73+BumpSize*0.0001))^C73 -> 0.9886747604 | X73: =L73 -> 2027-11-03 | Y73: =EXP(-($E73+BumpSize*0.0001)*$C73) -> 0.7802744291 | AA73: =O73 -> 2027-11-03 | AB73: =EXP(-($F73+BumpSize*0.0001)*$C73) -> 0.9462647593 | AD73: =R73 -> 2027-11-03 | AE73: =EXP(-($G73+BumpSize*0.0001)*$C73) -> 0.9886674425
A74: 66 | B74: =B73+Periodicity -> 2027-12-23 | C74: =(B74-AsOfDate)/365 -> 8.904109589 | D74: 0.0015 | E74: =$D74+E$7 -> 0.0285 | F74: 0.0065 | G74: 0.0015 | I74: =I73+Periodicity -> 2027-12-23 | J74: =EXP(-$D74*$C74) -> 0.9867326334 | L74: =L73+Periodicity -> 2027-12-23 | M74: =EXP(-$E74*$C74) -> 0.7758724636 | O74: =O73+Periodicity -> 2027-12-23 | P74: =EXP(-$F74*$C74) -> 0.943766295 | R74: =R73+Periodicity -> 2027-12-23 | S74: =EXP(-$G74*$C74) -> 0.9867326334 | U74: 2027-12-23 | V74: 0.9876202322 | X74: 2027-12-23 | Y74: 0.7765636166 | AA74: 2027-12-23 | AB74: 0.9446070091 | AD74: 2027-12-23 | AE74: 0.9876116222
A75: 67 | B75: 2028-02-11 | C75: 9.04109589 | D75: =D74+0.0001 -> 0.0016 | E75: 0.0286 | F75: 0.0066 | G75: 0.0016 | I75: 2028-02-11 | J75: 0.9856383729 | L75: 2028-02-11 | M75: 0.7721508531 | O75: 2028-02-11 | P75: 0.9420742057 | R75: 2028-02-11 | S75: 0.9856383729 | U75: 2028-02-11 | V75: 0.9865399252 | X75: 2028-02-11 | Y75: 0.7728492778 | AA75: 2028-02-11 | AB75: 0.9429263292 | AD75: 2028-02-11 | AE75: 0.986529901
A76: 68 | B76: 2028-04-01 | C76: 9.178082192 | D76: 0.0017 | E76: 0.0287 | F76: 0.0067 | G76: 0.0017 | I76: 2028-04-01 | J76: 0.9845183524 | L76: 2028-04-01 | M76: 0.7684260409 | O76: 2028-04-01 | P76: 0.9403593865 | R76: 2028-04-01 | S76: 0.9845183524 | U76: 2028-04-01 | V76: 0.9854339307 | X76: 2028-04-01 | Y76: 0.7691316324 | AA76: 2028-04-01 | AB76: 0.9412228523 | AD76: 2028-04-01 | AE76: 0.9854223662
A77: 69 | B77: 2028-05-21 | C77: 9.315068493 | D77: 0.0018 | E77: 0.0288 | F77: 0.0068 | G77: 0.0018 | I77: 2028-05-21 | J77: 0.9833726626 | L77: 2028-05-21 | M77: 0.764698246 | O77: 2028-05-21 | P77: 0.9386219728 | R77: 2028-05-21 | S77: 0.9833726626 | U77: 2028-05-21 | V77: 0.9843023416 | X77: 2028-05-21 | Y77: 0.7654108996 | AA77: 2028-05-21 | AB77: 0.9394967129 | AD77: 2028-05-21 | AE77: 0.9842891077
A78: 70 | B78: 2028-07-10 | C78: 9.452054795 | D78: 0.0019 | E78: 0.0289 | F78: 0.0069 | G78: 0.0019 | I78: 2028-07-10 | J78: 0.982201396 | L78: 2028-07-10 | M78: 0.7609676868 | O78: 2028-07-10 | P78: 0.9368621012 | R78: 2028-07-10 | S78: 0.982201396 | U78: 2028-07-10 | V78: 0.9831452531 | X78: 2028-07-10 | Y78: 0.7616872976 | AA78: 2028-07-10 | AB78: 0.9377480471 | AD78: 2028-07-10 | AE78: 0.983130217
A79: 71 | B79: 2028-08-29 | C79: 9.589041096 | D79: 0.002 | E79: 0.029 | F79: 0.007 | G79: 0.002 | I79: 2028-08-29 | J79: 0.9810046472 | L79: 2028-08-29 | M79: 0.7572345805 | O79: 2028-08-29 | P79: 0.9350799104 | R79: 2028-08-29 | S79: 0.9810046472 | U79: 2028-08-29 | V79: 0.9819627622 | X79: 2028-08-29 | Y79: 0.7579610441 | AA79: 2028-08-29 | AB79: 0.9359769924 | AD79: 2028-08-29 | AE79: 0.9819457878
A80: 72 | B80: 2028-10-18 | C80: 9.726027397 | D80: 0.0021 | E80: 0.0291 | F80: 0.0071 | G80: 0.0021 | I80: 2028-10-18 | J80: 0.9797825129 | L80: 2028-10-18 | M80: 0.7534991438 | O80: 2028-10-18 | P80: 0.9332755403 | R80: 2028-10-18 | S80: 0.9797825129 | U80: 2028-10-18 | V80: 0.9807549678 | X80: 2028-10-18 | Y80: 0.7542323556 | AA80: 2028-10-18 | AB80: 0.9341836882 | AD80: 2028-10-18 | AE80: 0.9807359156
A81: =A80+1 -> 73 | B81: 2028-12-07 | C81: 9.863013699 | D81: 0.0022 | E81: 0.0292 | F81: 0.0072 | G81: 0.0022 | I81: 2028-12-07 | J81: 0.9785350916 | L81: 2028-12-07 | M81: 0.7497615922 | O81: 2028-12-07 | P81: 0.9314491325 | R81: 2028-12-07 | S81: 0.9785350916 | U81: 2028-12-07 | V81: 0.9795219708 | X81: 2028-12-07 | Y81: 0.7505014479 | AA81: 2028-12-07 | AB81: 0.9323682752 | AD81: 2028-12-07 | AE81: 0.9795006982
A82: 74 | B82: 2029-01-26 | C82: 10 | D82: 0.0023 | E82: 0.0293 | F82: 0.0073 | G82: 0.0023 | I82: 2029-01-26 | J82: 0.9772624838 | L82: 2029-01-26 | M82: 0.7460221407 | O82: 2029-01-26 | P82: 0.92960083 | R82: 2029-01-26 | S82: 0.9772624838 | U82: 2029-01-26 | V82: 0.9782638741 | X82: 2029-01-26 | Y82: 0.746768536 | AA82: 2029-01-26 | AB82: 0.9305308958 | AD82: 2029-01-26 | AE82: 0.9782402351
A83: 75 | B83: 2029-03-17 | C83: 10.1369863 | D83: 0.0024 | E83: 0.0294 | F83: 0.0074 | G83: 0.0024 | I83: 2029-03-17 | J83: 0.9759647919 | L83: 2029-03-17 | M83: 0.742281003 | O83: 2029-03-17 | P83: 0.9277307776 | R83: 2029-03-17 | S83: 0.9759647919 | U83: 2029-03-17 | V83: 0.9769807823 | X83: 2029-03-17 | Y83: 0.7430338337 | AA83: 2029-03-17 | AB83: 0.9286716938 | AD83: 2029-03-17 | AE83: 0.9769546277
A84: 76 | B84: 2029-05-06 | C84: 10.2739726 | D84: 0.0025 | E84: 0.0295 | F84: 0.0075 | G84: 0.0025 | I84: 2029-05-06 | J84: 0.9746421203 | L84: 2029-05-06 | M84: 0.7385383921 | O84: 2029-05-06 | P84: 0.9258391213 | R84: 2029-05-06 | S84: 0.9746421203 | U84: 2029-05-06 | V84: 0.9756728022 | X84: 2029-05-06 | Y84: 0.7392975543 | AA84: 2029-05-06 | AB84: 0.9267908147 | AD84: 2029-05-06 | AE84: 0.9756439795
A85: 77 | B85: 2029-06-25 | C85: 10.4109589 | D85: 0.0026 | E85: 0.0296 | F85: 0.0076 | G85: 0.0026 | I85: 2029-06-25 | J85: 0.9732945752 | L85: 2029-06-25 | M85: 0.7347945199 | O85: 2029-06-25 | P85: 0.9239260087 | R85: 2029-06-25 | S85: 0.9732945752 | U85: 2029-06-25 | V85: 0.974340042 | X85: 2029-06-25 | Y85: 0.7355599098 | AA85: 2029-06-25 | AB85: 0.9248884052 | AD85: 2029-06-25 | AE85: 0.9743083959
A86: 78 | B86: 2029-08-14 | C86: 10.54794521 | D86: 0.0027 | E86: 0.0297 | F86: 0.0077 | G86: 0.0027 | I86: 2029-08-14 | J86: 0.9719222649 | L86: 2029-08-14 | M86: 0.7310495976 | O86: 2029-08-14 | P86: 0.9219915889 | R86: 2029-08-14 | S86: 0.9719222649 | U86: 2029-08-14 | V86: 0.9729826123 | X86: 2029-08-14 | Y86: 0.7318211115 | AA86: 2029-08-14 | AB86: 0.9229646137 | AD86: 2029-08-14 | AE86: 0.9729479841
A87: 79 | B87: 2029-10-03 | C87: 10.68493151 | D87: 0.0028 | E87: 0.0298 | F87: 0.0078 | G87: 0.0028 | I87: 2029-10-03 | J87: 0.9705252995 | L87: 2029-10-03 | M87: 0.727303835 | O87: 2029-10-03 | P87: 0.9200360124 | R87: 2029-10-03 | S87: 0.9705252995 | U87: 2029-10-03 | V87: 0.9716006251 | X87: 2029-10-03 | Y87: 0.7280813695 | AA87: 2029-10-03 | AB87: 0.92101959 | AD87: 2029-10-03 | AE87: 0.9715628533
A88: 80 | B88: 2029-11-22 | C88: 10.82191781 | D88: 0.0029 | E88: 0.0299 | F88: 0.0079 | G88: 0.0029 | I88: 2029-11-22 | J88: 0.9691037907 | L88: 2029-11-22 | M88: 0.7235574413 | O88: 2029-11-22 | P88: 0.9180594311 | R88: 2029-11-22 | S88: 0.9691037907 | U88: 2029-11-22 | V88: 0.9701941945 | X88: 2029-11-22 | Y88: 0.724340893 | AA88: 2029-11-22 | AB88: 0.9190534853 | AD88: 2029-11-22 | AE88: 0.9701531146
A89: 81 | B89: 2030-01-11 | C89: 10.95890411 | D89: 0.003 | E89: 0.03 | F89: 0.008 | G89: 0.003 | I89: 2030-01-11 | J89: 0.9676578525 | L89: 2030-01-11 | M89: 0.7198106244 | O89: 2030-01-11 | P89: 0.9160619983 | R89: 2030-01-11 | S89: 0.9676578525 | U89: 2030-01-11 | V89: 0.9687634364 | X89: 2030-01-11 | Y89: 0.7205998903 | AA89: 2030-01-11 | AB89: 0.9170664521 | AD89: 2030-01-11 | AE89: 0.9687188808
A90: 82 | B90: 2030-03-02 | C90: 11.09589041 | D90: 0.0031 | E90: 0.0301 | F90: 0.0081 | G90: 0.0031 | I90: 2030-03-02 | J90: 0.9661876004 | L90: 2030-03-02 | M90: 0.7160635913 | O90: 2030-03-02 | P90: 0.9140438687 | R90: 2030-03-02 | S90: 0.9661876004 | U90: 2030-03-02 | V90: 0.9673084682 | X90: 2030-03-02 | Y90: 0.7168585685 | AA90: 2030-03-02 | AB90: 0.9150586446 | AD90: 2030-03-02 | AE90: 0.9672602666
A91: 83 | B91: 2030-04-21 | C91: 11.23287671 | D91: 0.0032 | E91: 0.0302 | F91: 0.0082 | G91: 0.0032 | I91: 2030-04-21 | J91: 0.9646931519 | L91: 2030-04-21 | M91: 0.7123165478 | O91: 2030-04-21 | P91: 0.9120051983 | R91: 2030-04-21 | S91: 0.9646931519 | U91: 2030-04-21 | V91: 0.9658294095 | X91: 2030-04-21 | Y91: 0.7131171338 | AA91: 2030-04-21 | AB91: 0.9130302181 | AD91: 2030-04-21 | AE91: 0.9657773887
A92: 84 | B92: 2030-06-10 | C92: 11.36986301 | D92: 0.0033 | E92: 0.0303 | F92: 0.0083 | G92: 0.0033 | I92: 2030-06-10 | J92: 0.9631746263 | L92: 2030-06-10 | M92: 0.708569699 | O92: 2030-06-10 | P92: 0.9099461446 | R92: 2030-06-10 | S92: 0.9631746263 | U92: 2030-06-10 | V92: 0.9643263813 | X92: 2030-06-10 | Y92: 0.7093757912 | AA92: 2030-06-10 | AB92: 0.9109813293 | AD92: 2030-06-10 | AE92: 0.9642703654
A93: 85 | B93: 2030-07-30 | C93: 11.50684932 | D93: 0.0034 | E93: 0.0304 | F93: 0.0084 | G93: 0.0034 | I93: 2030-07-30 | J93: 0.9616321445 | L93: 2030-07-30 | M93: 0.7048232483 | O93: 2030-07-30 | P93: 0.9078668662 | R93: 2030-07-30 | S93: 0.9616321445 | U93: 2030-07-30 | V93: 0.9627995067 | X93: 2030-07-30 | Y93: 0.7056347446 | AA93: 2030-07-30 | AB93: 0.9089121362 | AD93: 2030-07-30 | AE93: 0.9627393169
A94: 86 | B94: 2030-09-18 | C94: 11.64383562 | D94: 0.0035 | E94: 0.0305 | F94: 0.0085 | G94: 0.0035 | I94: 2030-09-18 | J94: 0.9600658293 | L94: 2030-09-18 | M94: 0.7010773986 | O94: 2030-09-18 | P94: 0.9057675232 | R94: 2030-09-18 | S94: 0.9600658293 | U94: 2030-09-18 | V94: 0.9612489102 | X94: 2030-09-18 | Y94: 0.7018941971 | AA94: 2030-09-18 | AB94: 0.9068227983 | AD94: 2030-09-18 | AE94: 0.9611843653
A95: 87 | B95: 2030-11-07 | C95: 11.78082192 | D95: 0.0036 | E95: 0.0306 | F95: 0.0086 | G95: 0.0036 | I95: 2030-11-07 | J95: 0.9584758055 | L95: 2030-11-07 | M95: 0.6973323513 | O95: 2030-11-07 | P95: 0.9036482769 | R95: 2030-11-07 | S95: 0.9584758055 | U95: 2030-11-07 | V95: 0.9596747182 | X95: 2030-11-07 | Y95: 0.6981543503 | AA95: 2030-11-07 | AB95: 0.9047134762 | AD95: 2030-11-07 | AE95: 0.9596056341
A96: 88 | B96: 2030-12-27 | C96: 11.91780822 | D96: 0.0037 | E96: 0.0307 | F96: 0.0087 | G96: 0.0037 | I96: 2030-12-27 | J96: 0.9568621992 | L96: 2030-12-27 | M96: 0.6935883068 | O96: 2030-12-27 | P96: 0.9015092899 | R96: 2030-12-27 | S96: 0.9568621992 | U96: 2030-12-27 | V96: 0.9580770588 | X96: 2030-12-27 | Y96: 0.6944154048 | AA96: 2030-12-27 | AB96: 0.9025843318 | AD96: 2030-12-27 | AE96: 0.958003249
A97: 89 | B97: 2031-02-15 | C97: 12.05479452 | D97: 0.0038 | E97: 0.0308 | F97: 0.0088 | G97: 0.0038 | I97: 2031-02-15 | J97: 0.9552251385 | L97: 2031-02-15 | M97: 0.6898454643 | O97: 2031-02-15 | P97: 0.8993507258 | R97: 2031-02-15 | S97: 0.9552251385 | U97: 2031-02-15 | V97: 0.9564560618 | X97: 2031-02-15 | Y97: 0.6906775603 | AA97: 2031-02-15 | AB97: 0.9004355283 | AD97: 2031-02-15 | AE97: 0.9563773371
A98: 90 | B98: 2031-04-06 | C98: 12.19178082 | D98: 0.0039 | E98: 0.0309 | F98: 0.0089 | G98: 0.0039 | I98: 2031-04-06 | J98: 0.9535647532 | L98: 2031-04-06 | M98: 0.6861040219 | O98: 2031-04-06 | P98: 0.8971727498 | R98: 2031-04-06 | S98: 0.9535647532 | U98: 2031-04-06 | V98: 0.9548118584 | X98: 2031-04-06 | Y98: 0.686941015 | AA98: 2031-04-06 | AB98: 0.8982672302 | AD98: 2031-04-06 | AE98: 0.9547280274
A99: 91 | B99: 2031-05-26 | C99: 12.32876712 | D99: 0.004 | E99: 0.031 | F99: 0.009 | G99: 0.004 | I99: 2031-05-26 | J99: 0.9518811747 | L99: 2031-05-26 | M99: 0.6823641763 | O99: 2031-05-26 | P99: 0.894975528 | R99: 2031-05-26 | S99: 0.9518811747 | U99: 2031-05-26 | V99: 0.9531445818 | X99: 2031-05-26 | Y99: 0.683205966 | AA99: 2031-05-26 | AB99: 0.8960796029 | AD99: 2031-05-26 | AE99: 0.9530554505
A100: 92 | B100: 2031-07-15 | C100: 12.46575342 | D100: 0.0041 | E100: 0.0311 | F100: 0.0091 | G100: 0.0041 | I100: 2031-07-15 | J100: 0.9501745361 | L100: 2031-07-15 | M100: 0.6786261233 | O100: 2031-07-15 | P100: 0.8927592278 | R100: 2031-07-15 | S100: 0.9501745361 | U100: 2031-07-15 | V100: 0.9514543666 | X100: 2031-07-15 | Y100: 0.6794726094 | AA100: 2031-07-15 | AB100: 0.8938728134 | AD100: 2031-07-15 | AE100: 0.9513597388
A101: 93 | B101: 2031-09-03 | C101: 12.60273973 | D101: 0.0042 | E101: 0.0312 | F101: 0.0092 | G101: 0.0042 | I101: 2031-09-03 | J101: 0.9484449722 | L101: 2031-09-03 | M101: 0.6748900573 | O101: 2031-09-03 | P101: 0.8905240178 | R101: 2031-09-03 | S101: 0.9484449722 | U101: 2031-09-03 | V101: 0.9497413492 | X101: 2031-09-03 | Y101: 0.6757411399 | AA101: 2031-09-03 | AB101: 0.8916470295 | AD101: 2031-09-03 | AE101: 0.9496410263
A102: =A101+1 -> 94 | B102: 2031-10-23 | C102: 12.73972603 | D102: 0.0043 | E102: 0.0313 | F102: 0.0093 | G102: 0.0043 | I102: 2031-10-23 | J102: 0.9466926195 | L102: 2031-10-23 | M102: 0.6711561715 | O102: 2031-10-23 | P102: 0.8882700676 | R102: 2031-10-23 | S102: 0.9466926195 | U102: 2031-10-23 | V102: 0.9480056673 | X102: 2031-10-23 | Y102: 0.672011751 | AA102: 2031-10-23 | AB102: 0.8894024205 | AD102: 2031-10-23 | AE102: 0.9478994485
A103: 95 | B103: 2031-12-12 | C103: 12.87671233 | D103: 0.0044 | E103: 0.0314 | F103: 0.0094 | G103: 0.0044 | I103: 2031-12-12 | J103: 0.9449176159 | L103: 2031-12-12 | M103: 0.6674246579 | O103: 2031-12-12 | P103: 0.885997548 | R103: 2031-12-12 | S103: 0.9449176159 | U103: 2031-12-12 | V103: 0.9462474605 | X103: 2031-12-12 | Y103: 0.668284635 | AA103: 2031-12-12 | AB103: 0.8871391564 | AD103: 2031-12-12 | AE103: 0.9461351428
A104: 96 | B104: 2032-01-31 | C104: 13.01369863 | D104: 0.0045 | E104: 0.0315 | F104: 0.0095 | G104: 0.0045 | I104: 2032-01-31 | J104: 0.9431201011 | L104: 2032-01-31 | M104: 0.6636957072 | O104: 2032-01-31 | P104: 0.8837066308 | R104: 2032-01-31 | S104: 0.9431201011 | U104: 2032-01-31 | V104: 0.9444668698 | X104: 2032-01-31 | Y104: 0.664559983 | AA104: 2032-01-31 | AB104: 0.8848574087 | AD104: 2032-01-31 | AE104: 0.9443482481
A105: 97 | B105: 2032-03-21 | C105: 13.15068493 | D105: 0.0046 | E105: 0.0316 | F105: 0.0096 | G105: 0.0046 | I105: 2032-03-21 | J105: 0.9413002163 | L105: 2032-03-21 | M105: 0.6599695088 | O105: 2032-03-21 | P105: 0.8813974891 | R105: 2032-03-21 | S105: 0.9413002163 | U105: 2032-03-21 | V105: 0.9426640376 | X105: 2032-03-21 | Y105: 0.6608379848 | AA105: 2032-03-21 | AB105: 0.8825573496 | AD105: 2032-03-21 | AE105: 0.9425389048
A106: 98 | B106: 2032-05-10 | C106: =(B106-AsOfDate)/365 -> 13.28767123 | D106: 0.0047 | E106: 0.0317 | F106: 0.0097 | G106: 0.0047 | I106: 2032-05-10 | J106: 0.9394581042 | L106: 2032-05-10 | M106: 0.6562462509 | O106: 2032-05-10 | P106: 0.8790702967 | R106: 2032-05-10 | S106: 0.9394581042 | U106: 2032-05-10 | V106: 0.9408391081 | X106: 2032-05-10 | Y106: 0.6571188289 | AA106: 2032-05-10 | AB106: 0.8802391528 | AD106: 2032-05-10 | AE106: 0.940707255
A107: 99 | B107: 2032-06-29 | C107: 13.42465753 | D107: 0.0048 | E107: 0.0318 | F107: 0.0098 | G107: 0.0048 | I107: 2032-06-29 | J107: 0.9375939094 | L107: 2032-06-29 | M107: 0.6525261202 | O107: 2032-06-29 | P107: 0.8767252288 | R107: 2032-06-29 | S107: 0.9375939094 | U107: 2032-06-29 | V107: 0.9389922267 | X107: 2032-06-29 | Y107: 0.6534027025 | AA107: 2032-06-29 | AB107: 0.8779029927 | AD107: 2032-06-29 | AE107: 0.9388534423
A108: =A107+1 -> 100 | B108: 2032-08-18 | C108: 13.56164384 | D108: 0.0049 | E108: 0.0319 | F108: 0.0099 | G108: 0.0049 | I108: 2032-08-18 | J108: 0.9357077775 | L108: 2032-08-18 | M108: 0.6488093024 | O108: 2032-08-18 | P108: 0.8743624612 | R108: 2032-08-18 | S108: 0.9357077775 | U108: 2032-08-18 | V108: 0.9371235407 | X108: 2032-08-18 | Y108: 0.6496897914 | AA108: 2032-08-18 | AB108: 0.8755490448 | AD108: 2032-08-18 | AE108: 0.9369776119

Sheet Libor Rates
B2: Benchmark Libor Curves | F2: Libor Data for Pricing & Risk
B4: Bump Size | C4: -1 | D4: Bps
B6: EUR | F6: USD | J6: GBP | N6: JPY
A7: Row | B7: Date | C7: EUR6ML | D7: Bumped | F7: Date | G7: USD3ML | H7: Bumped | J7: Date | K7: GBP6ML | L7: Bumped | N7: Date | O7: JPY6ML | P7: Bumped
A8: 1 | B8: =AsOfDate -> 2019-01-29 | C8: 0.0004873311277 | D8: =C8+(BumpSizeLiborRates*0.0001) -> 0.0003873311277 | F8: =AsOfDate -> 2019-01-29 | G8: 0.027825 | H8: =G8+(BumpSizeLiborRates*0.0001) -> 0.027725 | J8: =AsOfDate -> 2019-01-29 | K8: 0.0075 | L8: =K8+(BumpSizeLiborRates*0.0001) -> 0.0074 | N8: =AsOfDate -> 2019-01-29 | O8: 0.005 | P8: =O8+(BumpSizeLiborRates*0.0001) -> 0.0049
A9: =A8+1 -> 2 | B9: =B8+Periodicity -> 2019-03-20 | C9: =C8+0.02% -> 0.0006873311277 | D9: 0.0005873311277 | F9: =F8+Periodicity -> 2019-03-20 | G9: 0.0269601 | H9: 0.0268601 | J9: =J8+Periodicity -> 2019-03-20 | K9: =K8-0.004% -> 0.00746 | L9: 0.00736 | N9: =N8+Periodicity -> 2019-03-20 | O9: 0.005 | P9: 0.0049
A10: =A9+1 -> 3 | B10: 2019-05-09 | C10: =C9+0.02% -> 0.0008873311277 | D10: 0.0007873311277 | F10: 2019-05-09 | G10: 0.0269601 | H10: 0.0268601 | J10: 2019-05-09 | K10: =K9-0.004% -> 0.00742 | L10: 0.00732 | N10: 2019-05-09 | O10: 0.005 | P10: 0.0049
A11: 4 | B11: 2019-06-28 | C11: 0.001087331128 | D11: 0.0009873311277 | F11: 2019-06-28 | G11: 0.0272608 | H11: 0.0271608 | J11: 2019-06-28 | K11: 0.00738 | L11: 0.00728 | N11: 2019-06-28 | O11: 0.005 | P11: 0.0049
A12: 5 | B12: 2019-08-17 | C12: 0.001287331128 | D12: 0.001187331128 | F12: 2019-08-17 | G12: 0.0272608 | H12: 0.0271608 | J12: 2019-08-17 | K12: 0.00734 | L12: 0.00724 | N12: 2019-08-17 | O12: 0.005 | P12: 0.0049
A13: 6 | B13: 2019-10-06 | C13: 0.001487331128 | D13: 0.001387331128 | F13: 2019-10-06 | G13: 0.0271307 | H13: 0.0270307 | J13: 2019-10-06 | K13: 0.0073 | L13: 0.0072 | N13: 2019-10-06 | O13: 0.005 | P13: 0.0049
A14: 7 | B14: 2019-11-25 | C14: 0.001687331128 | D14: 0.001587331128 | F14: 2019-11-25 | G14: 0.0271307 | H14: 0.0270307 | J14: 2019-11-25 | K14: 0.00726 | L14: 0.00716 | N14: 2019-11-25 | O14: 0.005 | P14: 0.0049
A15: 8 | B15: 2020-01-14 | C15: 0.001887331128 | D15: 0.001787331128 | F15: 2020-01-14 | G15: 0.0269557 | H15: 0.0268557 | J15: 2020-01-14 | K15: 0.00722 | L15: 0.00712 | N15: 2020-01-14 | O15: 0.005 | P15: 0.0049
A16: 9 | B16: 2020-03-04 | C16: 0.002087331128 | D16: 0.001987331128 | F16: 2020-03-04 | G16: 0.0269557 | H16: 0.0268557 | J16: 2020-03-04 | K16: 0.00718 | L16: 0.00708 | N16: 2020-03-04 | O16: 0.005 | P16: 0.0049
A17: 10 | B17: 2020-04-23 | C17: 0.002287331128 | D17: 0.002187331128 | F17: 2020-04-23 | G17: 0.0261807 | H17: 0.0260807 | J17: 2020-04-23 | K17: 0.00714 | L17: 0.00704 | N17: 2020-04-23 | O17: 0.005 | P17: 0.0049
A18: 11 | B18: 2020-06-12 | C18: 0.002487331128 | D18: 0.002387331128 | F18: 2020-06-12 | G18: 0.0260071 | H18: 0.0259071 | J18: 2020-06-12 | K18: 0.0071 | L18: 0.007 | N18: 2020-06-12 | O18: 0.005 | P18: 0.0049
A19: 12 | B19: 2020-08-01 | C19: 0.002687331128 | D19: 0.002587331128 | F19: 2020-08-01 | G19: 0.0260071 | H19: 0.0259071 | J19: 2020-08-01 | K19: 0.00706 | L19: 0.00696 | N19: 2020-08-01 | O19: 0.005 | P19: 0.0049
A20: 13 | B20: 2020-09-20 | C20: 0.002887331128 | D20: 0.002787331128 | F20: 2020-09-20 | G20: 0.0261966 | H20: 0.0260966 | J20: 2020-09-20 | K20: 0.00702 | L20: 0.00692 | N20: 2020-09-20 | O20: 0.005 | P20: 0.0049
A21: 14 | B21: 2020-11-09 | C21: 0.003087331128 | D21: 0.002987331128 | F21: 2020-11-09 | G21: 0.0261966 | H21: 0.0260966 | J21: 2020-11-09 | K21: 0.00698 | L21: 0.00688 | N21: 2020-11-09 | O21: 0.005 | P21: 0.0049
A22: 15 | B22: 2020-12-29 | C22: 0.003287331128 | D22: 0.003187331128 | F22: 2020-12-29 | G22: 0.0257993 | H22: 0.0256993 | J22: 2020-12-29 | K22: 0.00694 | L22: 0.00684 | N22: 2020-12-29 | O22: 0.005 | P22: 0.0049
A23: 16 | B23: 2021-02-17 | C23: 0.003487331128 | D23: 0.003387331128 | F23: 2021-02-17 | G23: 0.0257993 | H23: 0.0256993 | J23: 2021-02-17 | K23: 0.0069 | L23: 0.0068 | N23: 2021-02-17 | O23: 0.005 | P23: 0.0049
A24: 17 | B24: 2021-04-08 | C24: 0.003687331128 | D24: 0.003587331128 | F24: 2021-04-08 | G24: 0.0254009 | H24: 0.0253009 | J24: 2021-04-08 | K24: 0.00686 | L24: 0.00676 | N24: 2021-04-08 | O24: 0.005 | P24: 0.0049
A25: 18 | B25: 2021-05-28 | C25: 0.003887331128 | D25: 0.003787331128 | F25: 2021-05-28 | G25: 0.0254009 | H25: 0.0253009 | J25: 2021-05-28 | K25: 0.00682 | L25: 0.00672 | N25: 2021-05-28 | O25: 0.005 | P25: 0.0049
A26: 19 | B26: 2021-07-17 | C26: 0.004087331128 | D26: 0.003987331128 | F26: 2021-07-17 | G26: 0.0251804 | H26: 0.0250804 | J26: 2021-07-17 | K26: 0.00678 | L26: 0.00668 | N26: 2021-07-17 | O26: 0.005 | P26: 0.0049
A27: 20 | B27: 2021-09-05 | C27: 0.004287331128 | D27: 0.004187331128 | F27: 2021-09-05 | G27: 0.0251804 | H27: 0.0250804 | J27: 2021-09-05 | K27: 0.00674 | L27: 0.00664 | N27: 2021-09-05 | O27: 0.005 | P27: 0.0049
A28: 21 | B28: 2021-10-25 | C28: 0.004487331128 | D28: 0.004387331128 | F28: 2021-10-25 | G28: 0.0251372 | H28: 0.0250372 | J28: 2021-10-25 | K28: 0.0067 | L28: 0.0066 | N28: 2021-10-25 | O28: 0.005 | P28: 0.0049
A29: 22 | B29: 2021-12-14 | C29: 0.004687331128 | D29: 0.004587331128 | F29: 2021-12-14 | G29: 0.0252453 | H29: 0.0251453 | J29: 2021-12-14 | K29: 0.00666 | L29: 0.00656 | N29: 2021-12-14 | O29: 0.005 | P29: 0.0049
A30: 23 | B30: 2022-02-02 | C30: 0.004887331128 | D30: 0.004787331128 | F30: 2022-02-02 | G30: 0.0252453 | H30: 0.0251453 | J30: 2022-02-02 | K30: 0.00662 | L30: 0.00652 | N30: 2022-02-02 | O30: 0.005 | P30: 0.0049
A31: 24 | B31: 2022-03-24 | C31: 0.005087331128 | D31: 0.004987331128 | F31: 2022-03-24 | G31: 0.0254004 | H31: 0.0253004 | J31: 2022-03-24 | K31: 0.00658 | L31: 0.00648 | N31: 2022-03-24 | O31: 0.005 | P31: 0.0049
A32: 25 | B32: 2022-05-13 | C32: 0.005287331128 | D32: 0.005187331128 | F32: 2022-05-13 | G32: 0.0254004 | H32: 0.0253004 | J32: 2022-05-13 | K32: 0.00654 | L32: 0.00644 | N32: 2022-05-13 | O32: 0.005 | P32: 0.0049
A33: 26 | B33: 2022-07-02 | C33: 0.005487331128 | D33: 0.005387331128 | F33: 2022-07-02 | G33: 0.0255765 | H33: 0.0254765 | J33: 2022-07-02 | K33: 0.0065 | L33: 0.0064 | N33: 2022-07-02 | O33: 0.005 | P33: 0.0049
A34: 27 | B34: 2022-08-21 | C34: 0.005687331128 | D34: 0.005587331128 | F34: 2022-08-21 | G34: 0.0255765 | H34: 0.0254765 | J34: 2022-08-21 | K34: 0.00646 | L34: 0.00636 | N34: 2022-08-21 | O34: 0.005 | P34: 0.0049
A35: 28 | B35: 2022-10-10 | C35: 0.005887331128 | D35: 0.005787331128 | F35: 2022-10-10 | G35: 0.0257721 | H35: 0.0256721 | J35: 2022-10-10 | K35: 0.00642 | L35: 0.00632 | N35: 2022-10-10 | O35: 0.005 | P35: 0.0049
A36: 29 | B36: 2022-11-29 | C36: 0.006087331128 | D36: 0.005987331128 | F36: 2022-11-29 | G36: 0.0257721 | H36: 0.0256721 | J36: 2022-11-29 | K36: 0.00638 | L36: 0.00628 | N36: 2022-11-29 | O36: 0.005 | P36: 0.0049
A37: 30 | B37: 2023-01-18 | C37: 0.006287331128 | D37: 0.006187331128 | F37: 2023-01-18 | G37: 0.0259764 | H37: 0.0258764 | J37: 2023-01-18 | K37: 0.00634 | L37: 0.00624 | N37: 2023-01-18 | O37: 0.005 | P37: 0.0049
A38: 31 | B38: 2023-03-09 | C38: 0.006487331128 | D38: 0.006387331128 | F38: 2023-03-09 | G38: 0.0261688 | H38: 0.0260688 | J38: 2023-03-09 | K38: 0.0063 | L38: 0.0062 | N38: 2023-03-09 | O38: 0.005 | P38: 0.0049
A39: 32 | B39: 2023-04-28 | C39: 0.006687331128 | D39: 0.006587331128 | F39: 2023-04-28 | G39: 0.0261688 | H39: 0.0260688 | J39: 2023-04-28 | K39: 0.00626 | L39: 0.00616 | N39: 2023-04-28 | O39: 0.005 | P39: 0.0049
A40: 33 | B40: 2023-06-17 | C40: 0.006887331128 | D40: =C40+(BumpSizeLiborRates*0.0001) -> 0.006787331128 | F40: 2023-06-17 | G40: 0.0263428 | H40: =G40+(BumpSizeLiborRates*0.0001) -> 0.0262428 | J40: 2023-06-17 | K40: 0.00622 | L40: =K40+(BumpSizeLiborRates*0.0001) -> 0.00612 | N40: 2023-06-17 | O40: 0.005 | P40: =O40+(BumpSizeLiborRates*0.0001) -> 0.0049
A41: 34 | B41: =B40+Periodicity -> 2023-08-06 | C41: 0.007087331128 | D41: 0.006987331128 | F41: =F40+Periodicity -> 2023-08-06 | G41: 0.0263428 | H41: 0.0262428 | J41: =J40+Periodicity -> 2023-08-06 | K41: 0.00618 | L41: 0.00608 | N41: =N40+Periodicity -> 2023-08-06 | O41: 0.005 | P41: 0.0049
A42: 35 | B42: 2023-09-25 | C42: 0.007287331128 | D42: 0.007187331128 | F42: 2023-09-25 | G42: 0.0264961 | H42: 0.0263961 | J42: 2023-09-25 | K42: 0.00614 | L42: 0.00604 | N42: 2023-09-25 | O42: 0.005 | P42: 0.0049
A43: 36 | B43: 2023-11-14 | C43: 0.007487331128 | D43: 0.007387331128 | F43: 2023-11-14 | G43: 0.0264961 | H43: 0.0263961 | J43: 2023-11-14 | K43: 0.0061 | L43: 0.006 | N43: 2023-11-14 | O43: 0.005 | P43: 0.0049
A44: 37 | B44: 2024-01-03 | C44: 0.007687331128 | D44: 0.007587331128 | F44: 2024-01-03 | G44: 0.0264961 | H44: 0.0263961 | J44: 2024-01-03 | K44: 0.00606 | L44: 0.00596 | N44: 2024-01-03 | O44: 0.005 | P44: 0.0049
A45: 38 | B45: 2024-02-22 | C45: 0.007887331128 | D45: 0.007787331128 | F45: 2024-02-22 | G45: 0.0264961 | H45: 0.0263961 | J45: 2024-02-22 | K45: 0.00602 | L45: 0.00592 | N45: 2024-02-22 | O45: 0.005 | P45: 0.0049
A46: 39 | B46: 2024-04-12 | C46: 0.008087331128 | D46: 0.007987331128 | F46: 2024-04-12 | G46: 0.0264961 | H46: 0.0263961 | J46: 2024-04-12 | K46: 0.00598 | L46: 0.00588 | N46: 2024-04-12 | O46: 0.005 | P46: 0.0049
A47: 40 | B47: 2024-06-01 | C47: 0.008287331128 | D47: 0.008187331128 | F47: 2024-06-01 | G47: 0.0264961 | H47: 0.0263961 | J47: 2024-06-01 | K47: 0.00594 | L47: 0.00584 | N47: 2024-06-01 | O47: 0.005 | P47: 0.0049
A48: 41 | B48: 2024-07-21 | C48: 0.008487331128 | D48: 0.008387331128 | F48: 2024-07-21 | G48: 0.0264961 | H48: 0.0263961 | J48: 2024-07-21 | K48: 0.0059 | L48: 0.0058 | N48: 2024-07-21 | O48: 0.005 | P48: 0.0049
A49: 42 | B49: 2024-09-09 | C49: 0.008687331128 | D49: 0.008587331128 | F49: 2024-09-09 | G49: 0.0264961 | H49: 0.0263961 | J49: 2024-09-09 | K49: 0.00586 | L49: 0.00576 | N49: 2024-09-09 | O49: 0.005 | P49: 0.0049
A50: 43 | B50: 2024-10-29 | C50: 0.008887331128 | D50: 0.008787331128 | F50: 2024-10-29 | G50: 0.0264961 | H50: 0.0263961 | J50: 2024-10-29 | K50: 0.00582 | L50: 0.00572 | N50: 2024-10-29 | O50: 0.005 | P50: 0.0049
A51: 44 | B51: 2024-12-18 | C51: 0.009087331128 | D51: 0.008987331128 | F51: 2024-12-18 | G51: 0.0264961 | H51: 0.0263961 | J51: 2024-12-18 | K51: 0.00578 | L51: 0.00568 | N51: 2024-12-18 | O51: 0.005 | P51: 0.0049
A52: 45 | B52: 2025-02-06 | C52: 0.009287331128 | D52: 0.009187331128 | F52: 2025-02-06 | G52: 0.0264961 | H52: 0.0263961 | J52: 2025-02-06 | K52: 0.00574 | L52: 0.00564 | N52: 2025-02-06 | O52: 0.005 | P52: 0.0049
A53: 46 | B53: 2025-03-28 | C53: 0.009487331128 | D53: 0.009387331128 | F53: 2025-03-28 | G53: 0.0264961 | H53: 0.0263961 | J53: 2025-03-28 | K53: 0.0057 | L53: 0.0056 | N53: 2025-03-28 | O53: 0.005 | P53: 0.0049
A54: 47 | B54: 2025-05-17 | C54: 0.009687331128 | D54: 0.009587331128 | F54: 2025-05-17 | G54: 0.0264961 | H54: 0.0263961 | J54: 2025-05-17 | K54: 0.00566 | L54: 0.00556 | N54: 2025-05-17 | O54: 0.005 | P54: 0.0049
A55: 48 | B55: 2025-07-06 | C55: 0.009887331128 | D55: 0.009787331128 | F55: 2025-07-06 | G55: 0.0264961 | H55: 0.0263961 | J55: 2025-07-06 | K55: 0.00562 | L55: 0.00552 | N55: 2025-07-06 | O55: 0.005 | P55: 0.0049
A56: 49 | B56: 2025-08-25 | C56: 0.01008733113 | D56: 0.009987331128 | F56: 2025-08-25 | G56: 0.0264961 | H56: 0.0263961 | J56: 2025-08-25 | K56: 0.00558 | L56: 0.00548 | N56: 2025-08-25 | O56: 0.005 | P56: 0.0049
A57: 50 | B57: 2025-10-14 | C57: 0.01028733113 | D57: 0.01018733113 | F57: 2025-10-14 | G57: 0.0264961 | H57: 0.0263961 | J57: 2025-10-14 | K57: 0.00554 | L57: 0.00544 | N57: 2025-10-14 | O57: 0.005 | P57: 0.0049
A58: 51 | B58: 2025-12-03 | C58: 0.01048733113 | D58: 0.01038733113 | F58: 2025-12-03 | G58: 0.0264961 | H58: 0.0263961 | J58: 2025-12-03 | K58: 0.0055 | L58: 0.0054 | N58: 2025-12-03 | O58: 0.005 | P58: 0.0049
A59: 52 | B59: 2026-01-22 | C59: 0.01068733113 | D59: 0.01058733113 | F59: 2026-01-22 | G59: 0.0264961 | H59: 0.0263961 | J59: 2026-01-22 | K59: 0.00546 | L59: 0.00536 | N59: 2026-01-22 | O59: 0.005 | P59: 0.0049
A60: 53 | B60: 2026-03-13 | C60: 0.01088733113 | D60: 0.01078733113 | F60: 2026-03-13 | G60: 0.0264961 | H60: 0.0263961 | J60: 2026-03-13 | K60: 0.00542 | L60: 0.00532 | N60: 2026-03-13 | O60: 0.005 | P60: 0.0049
A61: 54 | B61: 2026-05-02 | C61: 0.01108733113 | D61: 0.01098733113 | F61: 2026-05-02 | G61: 0.0264961 | H61: 0.0263961 | J61: 2026-05-02 | K61: 0.00538 | L61: 0.00528 | N61: 2026-05-02 | O61: 0.005 | P61: 0.0049
A62: 55 | B62: 2026-06-21 | C62: 0.01128733113 | D62: 0.01118733113 | F62: 2026-06-21 | G62: 0.0264961 | H62: 0.0263961 | J62: 2026-06-21 | K62: 0.00534 | L62: 0.00524 | N62: 2026-06-21 | O62: 0.005 | P62: 0.0049
A63: 56 | B63: 2026-08-10 | C63: 0.01148733113 | D63: 0.01138733113 | F63: 2026-08-10 | G63: 0.0264961 | H63: 0.0263961 | J63: 2026-08-10 | K63: 0.0053 | L63: 0.0052 | N63: 2026-08-10 | O63: 0.005 | P63: 0.0049
A64: 57 | B64: 2026-09-29 | C64: 0.01168733113 | D64: 0.01158733113 | F64: 2026-09-29 | G64: 0.0264961 | H64: 0.0263961 | J64: 2026-09-29 | K64: 0.00526 | L64: 0.00516 | N64: 2026-09-29 | O64: 0.005 | P64: 0.0049
A65: 58 | B65: 2026-11-18 | C65: 0.01188733113 | D65: 0.01178733113 | F65: 2026-11-18 | G65: 0.0264961 | H65: 0.0263961 | J65: 2026-11-18 | K65: 0.00522 | L65: 0.00512 | N65: 2026-11-18 | O65: 0.005 | P65: 0.0049
A66: 59 | B66: 2027-01-07 | C66: 0.01208733113 | D66: 0.01198733113 | F66: 2027-01-07 | G66: 0.0264961 | H66: 0.0263961 | J66: 2027-01-07 | K66: 0.00518 | L66: 0.00508 | N66: 2027-01-07 | O66: 0.005 | P66: 0.0049
A67: 60 | B67: 2027-02-26 | C67: 0.01228733113 | D67: 0.01218733113 | F67: 2027-02-26 | G67: 0.0264961 | H67: 0.0263961 | J67: 2027-02-26 | K67: 0.00514 | L67: 0.00504 | N67: 2027-02-26 | O67: 0.005 | P67: 0.0049
A68: 61 | B68: 2027-04-17 | C68: 0.01248733113 | D68: 0.01238733113 | F68: 2027-04-17 | G68: 0.0264961 | H68: 0.0263961 | J68: 2027-04-17 | K68: 0.0175 | L68: 0.0174 | M68: x | N68: 2027-04-17 | O68: 0.005 | P68: 0.0049
A69: 62 | B69: 2027-06-06 | C69: 0.01268733113 | D69: 0.01258733113 | F69: 2027-06-06 | G69: 0.0264961 | H69: 0.0263961 | J69: 2027-06-06 | K69: =K68+0.008% -> 0.01758 | L69: 0.01748 | N69: 2027-06-06 | O69: 0.005 | P69: 0.0049
A70: 63 | B70: 2027-07-26 | C70: 0.01288733113 | D70: 0.01278733113 | F70: 2027-07-26 | G70: 0.0264961 | H70: 0.0263961 | J70: 2027-07-26 | K70: =K69+0.008% -> 0.01766 | L70: 0.01756 | N70: 2027-07-26 | O70: 0.005 | P70: 0.0049
A71: 64 | B71: 2027-09-14 | C71: 0.01308733113 | D71: 0.01298733113 | F71: 2027-09-14 | G71: 0.0264961 | H71: 0.0263961 | J71: 2027-09-14 | K71: 0.01774 | L71: 0.01764 | N71: 2027-09-14 | O71: 0.005 | P71: 0.0049
A72: 65 | B72: 2027-11-03 | C72: 0.01328733113 | D72: =C72+(BumpSizeLiborRates*0.0001) -> 0.01318733113 | F72: 2027-11-03 | G72: 0.0264961 | H72: =G72+(BumpSizeLiborRates*0.0001) -> 0.0263961 | J72: 2027-11-03 | K72: 0.01782 | L72: =K72+(BumpSizeLiborRates*0.0001) -> 0.01772 | N72: 2027-11-03 | O72: 0.005 | P72: =O72+(BumpSizeLiborRates*0.0001) -> 0.0049
A73: 66 | B73: =B72+Periodicity -> 2027-12-23 | C73: 0.01348733113 | D73: 0.01338733113 | F73: =F72+Periodicity -> 2027-12-23 | G73: 0.0264961 | H73: 0.0263961 | J73: =J72+Periodicity -> 2027-12-23 | K73: 0.0179 | L73: 0.0178 | N73: =N72+Periodicity -> 2027-12-23 | O73: 0.005 | P73: 0.0049
A74: =A73+1 -> 67 | B74: 2028-02-11 | C74: =C73+0.02% -> 0.01368733113 | D74: 0.01358733113 | F74: 2028-02-11 | G74: 0.0264961 | H74: 0.0263961 | J74: 2028-02-11 | K74: 0.01798 | L74: 0.01788 | N74: 2028-02-11 | O74: 0.005 | P74: 0.0049
A75: 68 | B75: 2028-04-01 | C75: 0.01388733113 | D75: 0.01378733113 | F75: 2028-04-01 | G75: 0.0264961 | H75: 0.0263961 | J75: 2028-04-01 | K75: 0.01806 | L75: 0.01796 | N75: 2028-04-01 | O75: 0.005 | P75: 0.0049
A76: 69 | B76: 2028-05-21 | C76: 0.01408733113 | D76: 0.01398733113 | F76: 2028-05-21 | G76: 0.0264961 | H76: 0.0263961 | J76: 2028-05-21 | K76: 0.01814 | L76: 0.01804 | N76: 2028-05-21 | O76: 0.005 | P76: 0.0049
A77: 70 | B77: 2028-07-10 | C77: 0.01428733113 | D77: 0.01418733113 | F77: 2028-07-10 | G77: 0.0264961 | H77: 0.0263961 | J77: 2028-07-10 | K77: 0.01822 | L77: 0.01812 | N77: 2028-07-10 | O77: 0.005 | P77: 0.0049
A78: 71 | B78: 2028-08-29 | C78: 0.01448733113 | D78: 0.01438733113 | F78: 2028-08-29 | G78: 0.0264961 | H78: 0.0263961 | J78: 2028-08-29 | K78: 0.0183 | L78: 0.0182 | N78: 2028-08-29 | O78: 0.005 | P78: 0.0049
A79: 72 | B79: 2028-10-18 | C79: 0.01468733113 | D79: 0.01458733113 | F79: 2028-10-18 | G79: 0.0264961 | H79: 0.0263961 | J79: 2028-10-18 | K79: 0.01838 | L79: 0.01828 | N79: 2028-10-18 | O79: 0.005 | P79: 0.0049
A80: 73 | B80: 2028-12-07 | C80: 0.01488733113 | D80: 0.01478733113 | F80: 2028-12-07 | G80: 0.0264961 | H80: 0.0263961 | J80: 2028-12-07 | K80: 0.01846 | L80: 0.01836 | N80: 2028-12-07 | O80: 0.005 | P80: 0.0049
A81: 74 | B81: 2029-01-26 | C81: 0.01508733113 | D81: 0.01498733113 | F81: 2029-01-26 | G81: 0.0264961 | H81: 0.0263961 | J81: 2029-01-26 | K81: 0.01854 | L81: 0.01844 | N81: 2029-01-26 | O81: 0.005 | P81: 0.0049
A82: 75 | B82: 2029-03-17 | C82: 0.01528733113 | D82: 0.01518733113 | F82: 2029-03-17 | G82: 0.0264961 | H82: 0.0263961 | J82: 2029-03-17 | K82: 0.01862 | L82: 0.01852 | N82: 2029-03-17 | O82: 0.005 | P82: 0.0049
A83: 76 | B83: 2029-05-06 | C83: 0.01548733113 | D83: 0.01538733113 | F83: 2029-05-06 | G83: 0.0264961 | H83: 0.0263961 | J83: 2029-05-06 | K83: 0.0187 | L83: 0.0186 | N83: 2029-05-06 | O83: 0.005 | P83: 0.0049
A84: 77 | B84: 2029-06-25 | C84: 0.01568733113 | D84: 0.01558733113 | F84: 2029-06-25 | G84: 0.0264961 | H84: 0.0263961 | J84: 2029-06-25 | K84: 0.01878 | L84: 0.01868 | N84: 2029-06-25 | O84: 0.005 | P84: 0.0049
A85: 78 | B85: 2029-08-14 | C85: 0.01588733113 | D85: 0.01578733113 | F85: 2029-08-14 | G85: 0.0264961 | H85: 0.0263961 | J85: 2029-08-14 | K85: 0.01886 | L85: 0.01876 | N85: 2029-08-14 | O85: 0.005 | P85: 0.0049
A86: 79 | B86: 2029-10-03 | C86: 0.01608733113 | D86: 0.01598733113 | F86: 2029-10-03 | G86: 0.0264961 | H86: 0.0263961 | J86: 2029-10-03 | K86: 0.01894 | L86: 0.01884 | N86: 2029-10-03 | O86: 0.005 | P86: 0.0049
A87: 80 | B87: 2029-11-22 | C87: 0.01628733113 | D87: 0.01618733113 | F87: 2029-11-22 | G87: 0.0264961 | H87: 0.0263961 | J87: 2029-11-22 | K87: 0.01902 | L87: 0.01892 | N87: 2029-11-22 | O87: 0.005 | P87: 0.0049
A88: 81 | B88: 2030-01-11 | C88: 0.01648733113 | D88: 0.01638733113 | F88: 2030-01-11 | G88: 0.0264961 | H88: 0.0263961 | J88: 2030-01-11 | K88: 0.0191 | L88: 0.019 | N88: 2030-01-11 | O88: 0.005 | P88: 0.0049
A89: 82 | B89: 2030-03-02 | C89: 0.01668733113 | D89: 0.01658733113 | F89: 2030-03-02 | G89: 0.0264961 | H89: 0.0263961 | J89: 2030-03-02 | K89: 0.01918 | L89: 0.01908 | N89: 2030-03-02 | O89: 0.005 | P89: 0.0049
A90: 83 | B90: 2030-04-21 | C90: 0.01688733113 | D90: 0.01678733113 | F90: 2030-04-21 | G90: 0.0264961 | H90: 0.0263961 | J90: 2030-04-21 | K90: 0.01926 | L90: 0.01916 | N90: 2030-04-21 | O90: 0.005 | P90: 0.0049
A91: 84 | B91: 2030-06-10 | C91: 0.01708733113 | D91: 0.01698733113 | F91: 2030-06-10 | G91: 0.0264961 | H91: 0.0263961 | J91: 2030-06-10 | K91: 0.01934 | L91: 0.01924 | N91: 2030-06-10 | O91: 0.005 | P91: 0.0049
A92: 85 | B92: 2030-07-30 | C92: 0.01728733113 | D92: 0.01718733113 | F92: 2030-07-30 | G92: 0.0264961 | H92: 0.0263961 | J92: 2030-07-30 | K92: 0.01942 | L92: 0.01932 | N92: 2030-07-30 | O92: 0.005 | P92: 0.0049
A93: 86 | B93: 2030-09-18 | C93: 0.01748733113 | D93: 0.01738733113 | F93: 2030-09-18 | G93: 0.0264961 | H93: 0.0263961 | J93: 2030-09-18 | K93: 0.0195 | L93: 0.0194 | N93: 2030-09-18 | O93: 0.005 | P93: 0.0049
A94: 87 | B94: 2030-11-07 | C94: 0.01768733113 | D94: 0.01758733113 | F94: 2030-11-07 | G94: 0.0264961 | H94: 0.0263961 | J94: 2030-11-07 | K94: 0.01958 | L94: 0.01948 | N94: 2030-11-07 | O94: 0.005 | P94: 0.0049
A95: 88 | B95: 2030-12-27 | C95: 0.01788733113 | D95: 0.01778733113 | F95: 2030-12-27 | G95: 0.0264961 | H95: 0.0263961 | J95: 2030-12-27 | K95: 0.01966 | L95: 0.01956 | N95: 2030-12-27 | O95: 0.005 | P95: 0.0049
A96: 89 | B96: 2031-02-15 | C96: 0.01808733113 | D96: 0.01798733113 | F96: 2031-02-15 | G96: 0.0264961 | H96: 0.0263961 | J96: 2031-02-15 | K96: 0.01974 | L96: 0.01964 | N96: 2031-02-15 | O96: 0.005 | P96: 0.0049
A97: 90 | B97: 2031-04-06 | C97: 0.01828733113 | D97: 0.01818733113 | F97: 2031-04-06 | G97: 0.0264961 | H97: 0.0263961 | J97: 2031-04-06 | K97: 0.01982 | L97: 0.01972 | N97: 2031-04-06 | O97: 0.005 | P97: 0.0049
A98: 91 | B98: 2031-05-26 | C98: 0.01848733113 | D98: 0.01838733113 | F98: 2031-05-26 | G98: 0.0264961 | H98: 0.0263961 | J98: 2031-05-26 | K98: 0.0199 | L98: 0.0198 | N98: 2031-05-26 | O98: 0.005 | P98: 0.0049
A99: 92 | B99: 2031-07-15 | C99: 0.01868733113 | D99: 0.01858733113 | F99: 2031-07-15 | G99: 0.0264961 | H99: 0.0263961 | J99: 2031-07-15 | K99: 0.01998 | L99: 0.01988 | N99: 2031-07-15 | O99: 0.005 | P99: 0.0049
A100: 93 | B100: 2031-09-03 | C100: 0.01888733113 | D100: 0.01878733113 | F100: 2031-09-03 | G100: 0.0264961 | H100: 0.0263961 | J100: 2031-09-03 | K100: 0.02006 | L100: 0.01996 | N100: 2031-09-03 | O100: 0.005 | P100: 0.0049
A101: 94 | B101: 2031-10-23 | C101: 0.01908733113 | D101: 0.01898733113 | F101: 2031-10-23 | G101: 0.0264961 | H101: 0.0263961 | J101: 2031-10-23 | K101: 0.02014 | L101: 0.02004 | N101: 2031-10-23 | O101: 0.005 | P101: 0.0049
A102: 95 | B102: 2031-12-12 | C102: 0.01928733113 | D102: 0.01918733113 | F102: 2031-12-12 | G102: 0.0264961 | H102: 0.0263961 | J102: 2031-12-12 | K102: 0.02022 | L102: 0.02012 | N102: 2031-12-12 | O102: 0.005 | P102: 0.0049
A103: 96 | B103: 2032-01-31 | C103: 0.01948733113 | D103: 0.01938733113 | F103: 2032-01-31 | G103: 0.0264961 | H103: 0.0263961 | J103: 2032-01-31 | K103: 0.0203 | L103: 0.0202 | N103: 2032-01-31 | O103: 0.005 | P103: 0.0049
A104: 97 | B104: 2032-03-21 | C104: 0.01968733113 | D104: =C104+(BumpSizeLiborRates*0.0001) -> 0.01958733113 | F104: 2032-03-21 | G104: 0.0264961 | H104: =G104+(BumpSizeLiborRates*0.0001) -> 0.0263961 | J104: 2032-03-21 | K104: 0.02038 | L104: =K104+(BumpSizeLiborRates*0.0001) -> 0.02028 | N104: 2032-03-21 | O104: 0.005 | P104: =O104+(BumpSizeLiborRates*0.0001) -> 0.0049
A105: 98 | B105: 2032-05-10 | C105: 0.01988733113 | D105: 0.01978733113 | F105: 2032-05-10 | G105: 0.0264961 | H105: 0.0263961 | J105: 2032-05-10 | K105: 0.02046 | L105: 0.02036 | N105: 2032-05-10 | O105: 0.005 | P105: 0.0049
A106: 99 | B106: 2032-06-29 | C106: 0.02008733113 | D106: 0.01998733113 | F106: 2032-06-29 | G106: 0.0264961 | H106: 0.0263961 | J106: 2032-06-29 | K106: 0.02054 | L106: 0.02044 | N106: 2032-06-29 | O106: 0.005 | P106: 0.0049
A107: 100 | B107: 2032-08-18 | C107: 0.02028733113 | D107: 0.02018733113 | F107: 2032-08-18 | G107: 0.0264961 | H107: 0.0263961 | J107: 2032-08-18 | K107: 0.02062 | L107: 0.02052 | N107: 2032-08-18 | O107: 0.005 | P107: 0.0049

Sheet Volatility
B2: 5 YEAR CAP VOLATILITIES
B4: VOLATILITY_TYPE | C4: EUR | E4: VOLATILITY_TYPE | F4: USD | H4: VOLATILITY_TYPE | I4: GBP | K4: VOLATILITY_TYPE | L4: JPY
B5: LOGNORMAL | C5: N/A - Negative Rates | E5: LOGNORMAL | F5: 0.305 | H5: LOGNORMAL | I5: 0.48 | K5: LOGNORMAL | L5: N/A - Negative Rates
B6: NORMAL | C6: 0.0052 | E6: NORMAL | F6: 0.009125 | H6: NORMAL | I6: 0.01288944 | K6: NORMAL | L6: 0.00191
B7: SHIFTED-LOGNORMAL | C7: 0.268 | E7: SHIFTED-LOGNORMAL | F7: 0.305 | H7: SHIFTED-LOGNORMAL | I7: 0.48 | K7: SHIFTED-LOGNORMAL | L7: 0.051827531
B8: SHIFTSIZE | C8: 0.01 | E8: SHIFTSIZE | F8: 0 | H8: SHIFTSIZE | I8: 0 | K8: SHIFTSIZE | L8: 0.01

Sheet Libor In-Arrears
B2: Refresh | W2: Volatility, sLN | X2: Volatility, SSLN | Y2: Volatility, nN | AJ2: ** Use Fixing Lag to Adjust for Arbitrary Time
W3: =VLOOKUP("LOGNORMAL",INDIRECT($B$21&Currency),2,0) -> 0.305 | X3: =VLOOKUP("SHIFTED-LOGNORMAL",INDIRECT($B$21&Currency),2,0) -> 0.305 | Y3: =VLOOKUP("NORMAL",INDIRECT($B$21&Currency),2,0) -> 0.009125
B4: Swap Trade Details | E4: Fixed Leg | P4: Float Leg | AJ4: Convexity Adjustments for Arbitrary Fixing Time **
B5: Payer/Receiver | C5: PAYER | D5: Row | E5: Accrual Start | F5: Accrual End | G5: Pay Date | H5: ti | I5: N | J5: rFixed | K5: ti | L5: P( tE, ti ) | M5: PVFixed | N5: Show | O5: Row | P5: Fixing Date | Q5: Accrual Start | R5: Accrual End | S5: Pay Date | T5: tj | U5: N | V5: lj | W5: CCLN | X5: CCSLN | Y5: CCN | Z5: Convexity, CC | AA5: lj + CC | AB5: s | AC5: lj + c + s | AD5: tj | AE5: P( tE, tj ) | AF5: PVFloat(Unadj) | AG5: PVFloat(Adj) | AH5: Show | AJ5: RiskFreeRate | AK5: CreditSpread | AL5: LiborRate | AM5: FixingYearFraction | AN5: LRM Slope, B Parameter
B6: Currency | C6: USD | D6: 1 | E6: =IF(N6,AsOfDate,"") -> 2019-01-29 | F6: =IF(N6,E6+K6*365.25,"") -> 2019-07-30T15:00:00 | G6: =IF(N6,F6,"") -> 2019-07-30T15:00:00 | H6: =IF(N6,t_i,"") -> 0.5 | I6: =IF(N6,N,"") -> 1000000 | J6: =IF(N6,r_fixed,"") -> 0.01 | K6: =IF(N6,t_i,"") -> 0.5 | L6: =IF(N6,IF(SetDiscFactToOne,1,VLOOKUP(G6,INDIRECT(DiscountCurve),2,TRUE)),"") -> 0.9908774814 | M6: =IF(N6,I6*J6*K6*L6,"") -> 4954.387407 | N6: =IF(t_i<=T,TRUE,FALSE) -> TRUE | O6: 1 | P6: =IF(AH6,IF(FixingInArrears,R6,Q6)-$C$19,"") -> 2019-04-30T07:30:00 | Q6: =IF(AH6,AsOfDate,"") -> 2019-01-29 | R6: =IF(AH6,Q6+AD6*365.25,"") -> 2019-04-30T07:30:00 | S6: =IF(AH6,R6,"") -> 2019-04-30T07:30:00 | T6: =IF(AH6,t_j,"") -> 0.25 | U6: =IF(AH6,N,"") -> 1000000 | V6: =IF(AH6,IF(ISNA(VLOOKUP(P6,INDIRECT(ForecastCurve),2,TRUE)),VLOOKUP(Q6,INDIRECT(ForecastCurve),2,TRUE),VLOOKUP(P6,INDIRECT(ForecastCurve),2,TRUE)),"") -> 0.0269601 | W6: =IF(AH6,IF(ISNUMBER(LogNormalVol),(V6*(1+AN6*V6*EXP(LogNormalVol*LogNormalVol*T6))/(1+AN6*V6))-V6,0),"") -> 4.246832926e-06 | X6: =IF(AH6,((V6+$C$22)*(1+AN6*(V6+$C$22)*(EXP(ShiftedLogNormalVol*ShiftedLogNormalVol*T6)+2*V6*$C$22+$C$22*$C$22))/(1+AN6*(V6+$C$22)))-(V6+$C$22),"") -> 4.246832926e-06 | Y6: =IF(AH6,V6*(1+(AN6*NormalVol*NormalVol*T6)/(V6*(1+AN6*V6)))-V6,"") -> 5.169260617e-06 | Z6: =IF(AH6,IF(ConvexityMethod="LOGNORMAL",W6,IF(ConvexityMethod="SHIFTED-LOGNORMAL",X6,IF(ConvexityMethod="NORMAL",Y6,""))),"") -> 4.246832926e-06 | AA6: =IF(AH6,V6+Z6,"") -> 0.02696434683 | AB6: =IF(AH6,s,"") -> 0 | AC6: =IF(AH6,AA6+(AB6*0.0001),"") -> 0.02696434683 | AD6: =IF(AH6,t_j,"") -> 0.25 | AE6: =IF(AH6,IF(SetDiscFactToOne,1,VLOOKUP(S6,INDIRECT(DiscountCurve),2,TRUE)),"") -> 0.9969771807 | AF6: =IF(AH6,U6*(V6+AB6)*AD6*AE6,"") -> 6719.651122 | AG6: =IF(AH6,U6*AC6*AD6*AE6,"") -> 6720.709621 | AH6: =IF(t_j<=T,TRUE,FALSE) -> TRUE | AJ6: =IF(AH6,((1/AE6)-1)/AD6,"") -> 0.01212793782 | AK6: =IF(AH6,V6-AJ6,"") -> 0.01483216218 | AL6: =IF(AH6,AJ6+AK6,"") -> 0.0269601 | AM6: =IF(AH6,(P6-Q6)/365.25,"") -> 0.25 | AN6: =IF(AH6,AM6*(AJ6+(AM6/AD6)*AK6)/AL6,"") -> 0.25
B7: Notional, N | C7: 1000000 | D7: =D6+1 -> 2 | E7: =IF(N7,F6,"") -> 2019-07-30T15:00:00 | F7: =IF(N7,E7+K7*365.25,"") -> 2020-01-29T06:00:00 | G7: =IF(N7,F7,"") -> 2020-01-29T06:00:00 | H7: =IF(N7,H6+t_i,"") -> 1 | I7: 1000000 | J7: 0.01 | K7: 0.5 | L7: =IF(N7,IF(SetDiscFactToOne,1,VLOOKUP(G7,INDIRECT(DiscountCurve),2,TRUE)),"") -> 0.9784680709 | M7: 4892.340355 | N7: =IF(SUM(K$6:K6)+t_i<=T,TRUE,FALSE) -> TRUE | O7: =O6+1 -> 2 | P7: 2019-07-30T15:00:00 | Q7: =IF(AH7,R6,"") -> 2019-04-30T07:30:00 | R7: 2019-07-30T15:00:00 | S7: 2019-07-30T15:00:00 | T7: =IF(AH7,T6+t_j,"") -> 0.5 | U7: 1000000 | V7: =IF(AH7,VLOOKUP(P7,INDIRECT(ForecastCurve),2,TRUE),"") -> 0.0272608 | W7: 8.785699197e-06 | X7: 8.785699197e-06 | Y7: 1.03377493e-05 | Z7: =IF(AH7,IF(ConvexityMethod="LOGNORMAL",W7,IF(ConvexityMethod="SHIFTED-LOGNORMAL",X7,IF(ConvexityMethod="NORMAL",Y7,""))),"") -> 8.785699197e-06 | AA7: 0.0272695857 | AB7: 0 | AC7: 0.0272695857 | AD7: 0.25 | AE7: 0.9908774814 | AF7: 6753.028211 | AG7: 6755.204599 | AH7: =IF(SUM(AD$6:AD6)+t_j<=T,TRUE,FALSE) -> TRUE | AJ7: =IF(AH7,((AE6/AE7)-1)/AD7,"") -> 0.02462342473 | AK7: =IF(AH7,V7-AJ7,"") -> 0.002637375266 | AL7: 0.0272608 | AM7: 0.25 | AN7: 0.25
B8: Fixed Rate, rFixed | C8: 0.01 | D8: =D7+1 -> 3 | E8: =IF(N8,F7,"") -> 2020-01-29T06:00:00 | F8: 2020-07-29T21:00:00 | G8: 2020-07-29T21:00:00 | H8: 1.5 | I8: 1000000 | J8: 0.01 | K8: 0.5 | L8: =IF(N8,IF(SetDiscFactToOne,1,VLOOKUP(G8,INDIRECT(DiscountCurve),2,TRUE)),"") -> 0.9689843196 | M8: 4844.921598 | N8: =IF(SUM(K$6:K7)+t_i<=T,TRUE,FALSE) -> TRUE | O8: =O7+1 -> 3 | P8: 2019-10-29T22:30:00 | Q8: 2019-07-30T15:00:00 | R8: 2019-10-29T22:30:00 | S8: 2019-10-29T22:30:00 | T8: 0.75 | U8: 1000000 | V8: 0.0271307 | W8: 1.3207645e-05 | X8: 1.3207645e-05 | Y8: 1.55071249e-05 | Z8: 1.3207645e-05 | AA8: 0.02714390764 | AB8: 0 | AC8: 0.02714390764 | AD8: 0.25 | AE8: 0.9847071823 | AF8: 6678.948787 | AG8: 6682.200203 | AH8: =IF(SUM(AD$6:AD7)+t_j<=T,TRUE,FALSE) -> TRUE | AJ8: 0.02506450352 | AK8: 0.002066196476 | AL8: 0.0271307 | AM8: 0.25 | AN8: 0.25
B9: Fixed Frequency | C9: =FixedLegFrequencySelected -> SEMI-ANNUAL | D9: 4 | E9: 2020-07-29T21:00:00 | F9: 2021-01-28T12:00:00 | G9: 2021-01-28T12:00:00 | H9: 2 | I9: 1000000 | J9: 0.01 | K9: 0.5 | L9: 0.9561153518 | M9: 4780.576759 | N9: =IF(SUM(K$6:K8)+t_i<=T,TRUE,FALSE) -> TRUE | O9: 4 | P9: 2020-01-29T06:00:00 | Q9: 2019-10-29T22:30:00 | R9: 2020-01-29T06:00:00 | S9: 2020-01-29T06:00:00 | T9: 1 | U9: 1000000 | V9: 0.0269557 | W9: 1.759060429e-05 | X9: 1.759060429e-05 | Y9: 2.067706506e-05 | Z9: 1.759060429e-05 | AA9: 0.0269732906 | AB9: 0 | AC9: 0.0269732906 | AD9: 0.25 | AE9: 0.9784680709 | AF9: 6593.822945 | AG9: 6598.125906 | AH9: =IF(SUM(AD$6:AD8)+t_j<=T,TRUE,FALSE) -> TRUE | AJ9: 0.02550563065 | AK9: 0.001450069346 | AL9: 0.0269557 | AM9: 0.25 | AN9: 0.25
B10: Float Frequency | C10: =FloatLegFrequencySelected -> QUARTERLY | D10: 5 | E10: 2021-01-28T12:00:00 | F10: 2021-07-30T03:00:00 | G10: 2021-07-30T03:00:00 | H10: 2.5 | I10: 1000000 | J10: 0.01 | K10: 0.5 | L10: 0.9430038332 | M10: 4715.019166 | N10: =IF(SUM(K$6:K9)+t_i<=T,TRUE,FALSE) -> TRUE | O10: 5 | P10: 2020-04-29T13:30:00 | Q10: 2020-01-29T06:00:00 | R10: 2020-04-29T13:30:00 | S10: 2020-04-29T13:30:00 | T10: 1.25 | U10: 1000000 | V10: 0.0261807 | W10: 2.099296294e-05 | X10: 2.099296294e-05 | Y10: 2.585130649e-05 | Z10: 2.099296294e-05 | AA10: 0.02620169296 | AB10: 0 | AC10: 0.02620169296 | AD10: 0.25 | AE10: 0.9721619466 | AF10: 6362.970069 | AG10: 6368.072209 | AH10: =IF(SUM(AD$6:AD9)+t_j<=T,TRUE,FALSE) -> TRUE | AJ10: 0.02594680613 | AK10: 0.0002338938703 | AL10: 0.0261807 | AM10: 0.25 | AN10: 0.25
B11: Libor Spread, s | C11: 0 | D11: 6 | E11: 2021-07-30T03:00:00 | F11: 2022-01-28T18:00:00 | G11: 2022-01-28T18:00:00 | H11: 3 | I11: 1000000 | J11: 0.01 | K11: 0.5 | L11: 0.9330198834 | M11: 4665.099417 | N11: =IF(SUM(K$6:K10)+t_i<=T,TRUE,FALSE) -> TRUE | O11: 6 | P11: 2020-07-29T21:00:00 | Q11: 2020-04-29T13:30:00 | R11: 2020-07-29T21:00:00 | S11: 2020-07-29T21:00:00 | T11: 1.5 | U11: 1000000 | V11: 0.0260071 | W11: 2.515664474e-05 | X11: 2.515664474e-05 | Y11: 3.102290542e-05 | Z11: 2.515664474e-05 | AA11: 0.02603225664 | AB11: 0 | AC11: 0.02603225664 | AD11: 0.25 | AE11: 0.9689843196 | AF11: 6300.118024 | AG11: 6306.212123 | AH11: =IF(SUM(AD$6:AD10)+t_j<=T,TRUE,FALSE) -> TRUE | AJ11: 0.01311735162 | AK11: 0.01288974838 | AL11: 0.0260071 | AM11: 0.25 | AN11: 0.25
B12: Tenor, T | C12: 5 | D12: 7 | E12: 2022-01-28T18:00:00 | F12: 2022-07-30T09:00:00 | G12: 2022-07-30T09:00:00 | H12: 3.5 | I12: 1000000 | J12: 0.01 | K12: 0.5 | L12: 0.919519425 | M12: 4597.597125 | N12: =IF(SUM(K$6:K11)+t_i<=T,TRUE,FALSE) -> TRUE | O12: 7 | P12: 2020-10-29T04:30:00 | Q12: 2020-07-29T21:00:00 | R12: 2020-10-29T04:30:00 | S12: 2020-10-29T04:30:00 | T12: 1.75 | U12: 1000000 | V12: 0.0261966 | W12: 3.013438144e-05 | X12: 3.013438144e-05 | Y12: 3.619168616e-05 | Z12: 3.013438144e-05 | AA12: 0.02622673438 | AB12: 0 | AC12: 0.02622673438 | AD12: 0.25 | AE12: 0.9625810714 | AF12: 6304.087824 | AG12: 6311.33952 | AH12: =IF(SUM(AD$6:AD11)+t_j<=T,TRUE,FALSE) -> TRUE | AJ12: 0.02660866 | AK12: -0.0004120600021 | AL12: 0.0261966 | AM12: 0.25 | AN12: 0.25
D13: 8 | E13: 2022-07-30T09:00:00 | F13: 2023-01-29 | G13: 2023-01-29 | H13: 4 | I13: 1000000 | J13: 0.01 | K13: 0.5 | L13: 0.9058171557 | M13: 4529.085778 | N13: =IF(SUM(K$6:K12)+t_i<=T,TRUE,FALSE) -> TRUE | O13: 8 | P13: 2021-01-28T12:00:00 | Q13: 2020-10-29T04:30:00 | R13: 2021-01-28T12:00:00 | S13: 2021-01-28T12:00:00 | T13: 2 | U13: 1000000 | V13: 0.0257993 | W13: 3.380802768e-05 | X13: 3.380802768e-05 | Y13: 4.136600898e-05 | Z13: 3.380802768e-05 | AA13: 0.02583310803 | AB13: 0 | AC13: 0.02583310803 | AD13: 0.25 | AE13: 0.9561153518 | AF13: 6166.776699 | AG13: 6174.857793 | AH13: =IF(SUM(AD$6:AD12)+t_j<=T,TRUE,FALSE) -> TRUE | AJ13: 0.02704995636 | AK13: -0.001250656364 | AL13: 0.0257993 | AM13: 0.25 | AN13: 0.25
B14: Approximate* | C14: FALSE | D14: 9 | E14: 2023-01-29 | F14: 2023-07-30T15:00:00 | G14: 2023-07-30T15:00:00 | H14: 4.5 | I14: 1000000 | J14: 0.01 | K14: 0.5 | L14: 0.8954169946 | M14: 4477.084973 | N14: =IF(SUM(K$6:K13)+t_i<=T,TRUE,FALSE) -> TRUE | O14: 9 | P14: 2021-04-29T19:30:00 | Q14: 2021-01-28T12:00:00 | R14: 2021-04-29T19:30:00 | S14: 2021-04-29T19:30:00 | T14: 2.25 | U14: 1000000 | V14: 0.0254009 | W14: 3.731762572e-05 | X14: 3.731762572e-05 | Y14: 4.654136592e-05 | Z14: 3.731762572e-05 | AA14: 0.02543821763 | AB14: 0 | AC14: 0.02543821763 | AD14: 0.25 | AE14: 0.9495889926 | AF14: 6030.10376 | AG14: 6038.962862 | AH14: =IF(SUM(AD$6:AD13)+t_j<=T,TRUE,FALSE) -> TRUE | AJ14: 0.02749130109 | AK14: -0.00209040109 | AL14: 0.0254009 | AM14: 0.25 | AN14: 0.25
B15: * Annualizes Schedule and sets DFs to One | D15: 10 | E15: 2023-07-30T15:00:00 | F15: 2024-01-29T06:00:00 | G15: 2024-01-29T06:00:00 | H15: 5 | I15: 1000000 | J15: 0.01 | K15: 0.5 | L15: 0.8813974891 | M15: 4406.987445 | N15: =IF(SUM(K$6:K14)+t_i<=T,TRUE,FALSE) -> TRUE | O15: 10 | P15: 2021-07-30T03:00:00 | Q15: 2021-04-29T19:30:00 | R15: 2021-07-30T03:00:00 | S15: 2021-07-30T03:00:00 | T15: 2.5 | U15: 1000000 | V15: 0.0251804 | W15: 4.124375122e-05 | X15: 4.124375122e-05 | Y15: 5.171546162e-05 | Z15: 4.124375122e-05 | AA15: 0.02522164375 | AB15: 0 | AC15: 0.02522164375 | AD15: 0.25 | AE15: 0.9430038332 | AF15: 5936.30343 | AG15: 5946.026684 | AH15: =IF(SUM(AD$6:AD14)+t_j<=T,TRUE,FALSE) -> TRUE | AJ15: 0.02793269419 | AK15: -0.002752294185 | AL15: 0.0251804 | AM15: 0.25 | AN15: 0.25
D16: 11 | N16: =IF(SUM(K$6:K15)+t_i<=T,TRUE,FALSE) -> FALSE | O16: 11 | P16: 2021-10-29T10:30:00 | Q16: 2021-07-30T03:00:00 | R16: 2021-10-29T10:30:00 | S16: 2021-10-29T10:30:00 | T16: 2.75 | U16: 1000000 | V16: 0.0251372 | W16: 4.576351884e-05 | X16: 4.576351884e-05 | Y16: 5.688761833e-05 | Z16: 4.576351884e-05 | AA16: 0.02518296352 | AB16: 0 | AC16: 0.02518296352 | AD16: 0.25 | AE16: 0.9363617195 | AF16: 5884.377954 | AG16: 5895.090756 | AH16: =IF(SUM(AD$6:AD15)+t_j<=T,TRUE,FALSE) -> TRUE | AJ16: 0.02837413566 | AK16: -0.003236935655 | AL16: 0.0251372 | AM16: 0.25 | AN16: 0.25
B17: Libor In-Arrears | D17: 12 | N17: =IF(SUM(K$6:K16)+t_i<=T,TRUE,FALSE) -> FALSE | O17: 12 | P17: 2022-01-28T18:00:00 | Q17: 2021-10-29T10:30:00 | R17: 2022-01-28T18:00:00 | S17: 2022-01-28T18:00:00 | T17: 3 | U17: 1000000 | V17: 0.0252453 | W17: 5.096809995e-05 | X17: 5.096809995e-05 | Y17: 6.205755336e-05 | Z17: 5.096809995e-05 | AA17: 0.0252962681 | AB17: 0 | AC17: 0.0252962681 | AD17: 0.25 | AE17: 0.9330198834 | AF17: 5888.591716 | AG17: 5900.480278 | AH17: =IF(SUM(AD$6:AD16)+t_j<=T,TRUE,FALSE) -> TRUE | AJ17: 0.01432696651 | AK17: 0.01091833349 | AL17: 0.0252453 | AM17: 0.25 | AN17: 0.25
B18: FixingInArrears | C18: TRUE | D18: 13 | N18: =IF(SUM(K$6:K17)+t_i<=T,TRUE,FALSE) -> FALSE | O18: 13 | P18: 2022-04-30T01:30:00 | Q18: 2022-01-28T18:00:00 | R18: 2022-04-30T01:30:00 | S18: 2022-04-30T01:30:00 | T18: 3.25 | U18: 1000000 | V18: 0.0254004 | W18: 5.657938449e-05 | X18: 5.657938449e-05 | Y18: 6.722642579e-05 | Z18: 5.657938449e-05 | AA18: 0.02545697938 | AB18: 0 | AC18: 0.02545697938 | AD18: 0.25 | AE18: 0.9262958121 | AF18: 5882.071036 | AG18: 5895.173348 | AH18: =IF(SUM(AD$6:AD17)+t_j<=T,TRUE,FALSE) -> TRUE | AJ18: 0.02903638857 | AK18: -0.003635988573 | AL18: 0.0254004 | AM18: 0.25 | AN18: 0.25
B19: FixingLag (Days) | C19: 0 | D19: 14 | N19: =IF(SUM(K$6:K18)+t_i<=T,TRUE,FALSE) -> FALSE | O19: 14 | P19: 2022-07-30T09:00:00 | Q19: 2022-04-30T01:30:00 | R19: 2022-07-30T09:00:00 | S19: 2022-07-30T09:00:00 | T19: 3.5 | U19: 1000000 | V19: 0.0255765 | W19: 6.253726242e-05 | X19: 6.253726242e-05 | Y19: 7.239452225e-05 | Z19: 6.253726242e-05 | AA19: 0.02563903726 | AB19: 0 | AC19: 0.02563903726 | AD19: 0.25 | AE19: 0.919519425 | AF19: 5879.522143 | AG19: 5893.8982 | AH19: =IF(SUM(AD$6:AD18)+t_j<=T,TRUE,FALSE) -> TRUE | AJ19: 0.029477951 | AK19: -0.003901451003 | AL19: 0.0255765 | AM19: 0.25 | AN19: 0.25
B20: ConvexityAdjustment | C20: LOGNORMAL | D20: 15 | N20: =IF(SUM(K$6:K19)+t_i<=T,TRUE,FALSE) -> FALSE | O20: 15 | P20: 2022-10-29T16:30:00 | Q20: 2022-07-30T09:00:00 | R20: 2022-10-29T16:30:00 | S20: 2022-10-29T16:30:00 | T20: 3.75 | U20: 1000000 | V20: 0.0257721 | W20: 6.88702556e-05 | X20: 6.88702556e-05 | Y20: 7.756179088e-05 | Z20: 6.88702556e-05 | AA20: 0.02584097026 | AB20: 0 | AC20: 0.02584097026 | AD20: 0.25 | AE20: 0.9126925844 | AF20: 5880.501139 | AG20: 5896.215482 | AH20: =IF(SUM(AD$6:AD19)+t_j<=T,TRUE,FALSE) -> TRUE | AJ20: 0.02991956182 | AK20: -0.004147461825 | AL20: 0.0257721 | AM20: 0.25 | AN20: 0.25
B21: Volatility | C21: =VLOOKUP(ConvexityMethod,INDIRECT($B$21&Currency),2,0) -> 0.305 | D21: 16 | N21: =IF(SUM(K$6:K20)+t_i<=T,TRUE,FALSE) -> FALSE | O21: 16 | P21: 2023-01-29 | Q21: 2022-10-29T16:30:00 | R21: 2023-01-29 | S21: 2023-01-29 | T21: 4 | U21: 1000000 | V21: 0.0259764 | W21: 7.555260863e-05 | X21: 7.555260863e-05 | Y21: 8.272837864e-05 | Z21: 7.555260863e-05 | AA21: 0.02605195261 | AB21: 0 | AC21: 0.02605195261 | AD21: 0.25 | AE21: 0.9058171557 | AF21: 5882.467191 | AG21: 5899.576403 | AH21: =IF(SUM(AD$6:AD20)+t_j<=T,TRUE,FALSE) -> TRUE | AJ21: 0.03036122105 | AK21: -0.004384821045 | AL21: 0.0259764 | AM21: 0.25 | AN21: 0.25
B22: ShiftSize | C22: =VLOOKUP(UPPER(B22),INDIRECT($B$21&Currency),2,0) -> 0 | D22: 17 | N22: =IF(SUM(K$6:K21)+t_i<=T,TRUE,FALSE) -> FALSE | O22: 17 | P22: 2023-04-30T07:30:00 | Q22: 2023-01-29 | R22: 2023-04-30T07:30:00 | S22: 2023-04-30T07:30:00 | T22: 4.25 | U22: 1000000 | V22: 0.0261688 | W22: 8.247827155e-05 | X22: 8.247827155e-05 | Y22: 8.789470184e-05 | Z22: 8.247827155e-05 | AA22: 0.02625127827 | AB22: 0 | AC22: 0.02625127827 | AD22: 0.25 | AE22: 0.898895006 | AF22: 5880.750908 | AG22: 5899.285735 | AH22: =IF(SUM(AD$6:AD21)+t_j<=T,TRUE,FALSE) -> TRUE | AJ22: 0.03080292867 | AK22: -0.004634128669 | AL22: 0.0261688 | AM22: 0.25 | AN22: 0.25
B23: Convexity PV Adj | C23: =PV_Swap-PV_Swap_Unadjusted -> 221.6641722 | D23: 18 | N23: =IF(SUM(K$6:K22)+t_i<=T,TRUE,FALSE) -> FALSE | O23: 18 | P23: 2023-07-30T15:00:00 | Q23: 2023-04-30T07:30:00 | R23: 2023-07-30T15:00:00 | S23: 2023-07-30T15:00:00 | T23: 4.5 | U23: 1000000 | V23: 0.0263428 | W23: 8.959674959e-05 | X23: 8.959674959e-05 | Y23: 9.306095658e-05 | Z23: 8.959674959e-05 | AA23: 0.02643239675 | AB23: 0 | AC23: 0.02643239675 | AD23: 0.25 | AE23: 0.8954169946 | AF23: 5896.947702 | AG23: 5917.004315 | AH23: =IF(SUM(AD$6:AD22)+t_j<=T,TRUE,FALSE) -> TRUE | AJ23: 0.01553694599 | AK23: 0.01080585401 | AL23: 0.0263428 | AM23: 0.25 | AN23: 0.25
B24: Convexity ParRate Adj | C24: =p-p_Unadjusted -> 4.730036471e-05 | D24: 19 | N24: =IF(SUM(K$6:K23)+t_i<=T,TRUE,FALSE) -> FALSE | O24: 19 | P24: 2023-10-29T22:30:00 | Q24: 2023-07-30T15:00:00 | R24: 2023-10-29T22:30:00 | S24: 2023-10-29T22:30:00 | T24: 4.75 | U24: 1000000 | V24: 0.0264961 | W24: 9.687414739e-05 | X24: 9.687414739e-05 | Y24: 9.82272698e-05 | Z24: 9.687414739e-05 | AA24: 0.02659297415 | AB24: 0 | AC24: 0.02659297415 | AD24: 0.25 | AE24: 0.8884282668 | AF24: 5884.97105 | AG24: 5906.487482 | AH24: =IF(SUM(AD$6:AD23)+t_j<=T,TRUE,FALSE) -> TRUE | AJ24: 0.03146558087 | AK24: -0.004969480874 | AL24: 0.0264961 | AM24: 0.25 | AN24: 0.25
D25: 20 | N25: =IF(SUM(K$6:K24)+t_i<=T,TRUE,FALSE) -> FALSE | O25: 20 | P25: 2024-01-29T06:00:00 | Q25: 2023-10-29T22:30:00 | R25: 2024-01-29T06:00:00 | S25: 2024-01-29T06:00:00 | T25: 5 | U25: 1000000 | V25: 0.0264961 | W25: 0.0001032558607 | X25: 0.0001032558607 | Y25: 0.0001033971261 | Z25: 0.0001032558607 | AA25: 0.02659935586 | AB25: 0 | AC25: 0.02659935586 | AD25: 0.25 | AE25: 0.8813974891 | AF25: 5838.399003 | AG25: 5861.151367 | AH25: =IF(SUM(AD$6:AD24)+t_j<=T,TRUE,FALSE) -> TRUE | AJ25: 0.03190740953 | AK25: -0.005411309531 | AL25: 0.0264961 | AM25: 0.25 | AN25: 0.25
B26: Swap Pricing | D26: 21 | N26: =IF(SUM(K$6:K25)+t_i<=T,TRUE,FALSE) -> FALSE | O26: 21 | AH26: =IF(SUM(AD$6:AD25)+t_j<=T,TRUE,FALSE) -> FALSE
B27: Swap PV | C27: =PV_Swap -> 76002.97486 | D27: 22 | N27: =IF(SUM(K$6:K26)+t_i<=T,TRUE,FALSE) -> FALSE | O27: 22 | AH27: =IF(SUM(AD$6:AD26)+t_j<=T,TRUE,FALSE) -> FALSE
B28: Fixed Leg PV | C28: =PV_FixedLeg -> -46863.10002 | D28: 23 | N28: =IF(SUM(K$6:K27)+t_i<=T,TRUE,FALSE) -> FALSE | O28: 23 | AH28: =IF(SUM(AD$6:AD27)+t_j<=T,TRUE,FALSE) -> FALSE
B29: Float Leg PV | C29: =PV_FloatLeg -> 122866.0749 | D29: 24 | N29: =IF(SUM(K$6:K28)+t_i<=T,TRUE,FALSE) -> FALSE | O29: 24 | AH29: =IF(SUM(AD$6:AD28)+t_j<=T,TRUE,FALSE) -> FALSE
B30: Par Rate | C30: =p -> 0.02621808519 | D30: 25 | N30: =IF(SUM(K$6:K29)+t_i<=T,TRUE,FALSE) -> FALSE | O30: 25 | AH30: =IF(SUM(AD$6:AD29)+t_j<=T,TRUE,FALSE) -> FALSE
D31: 26 | N31: =IF(SUM(K$6:K30)+t_i<=T,TRUE,FALSE) -> FALSE | O31: 26 | AH31: =IF(SUM(AD$6:AD30)+t_j<=T,TRUE,FALSE) -> FALSE
B32: Yield Curves | D32: 27 | N32: =IF(SUM(K$6:K31)+t_i<=T,TRUE,FALSE) -> FALSE | O32: 27 | AH32: =IF(SUM(AD$6:AD31)+t_j<=T,TRUE,FALSE) -> FALSE
B33: Forecast Curve | C33: =Currency&IF(Currency="USD","3ML","6ML") -> USD3ML | D33: 28 | N33: =IF(SUM(K$6:K32)+t_i<=T,TRUE,FALSE) -> FALSE | O33: 28 | AH33: =IF(SUM(AD$6:AD32)+t_j<=T,TRUE,FALSE) -> FALSE
B34: Discount Curve | C34: =Currency&"DiscFact" -> USDDiscFact | D34: 29 | N34: =IF(SUM(K$6:K33)+t_i<=T,TRUE,FALSE) -> FALSE | O34: 29 | AH34: =IF(SUM(AD$6:AD33)+t_j<=T,TRUE,FALSE) -> FALSE
B35: Set DiscFact=1 | C35: =Approximate -> FALSE | D35: 30 | N35: =IF(SUM(K$6:K34)+t_i<=T,TRUE,FALSE) -> FALSE | O35: 30 | AH35: =IF(SUM(AD$6:AD34)+t_j<=T,TRUE,FALSE) -> FALSE
D36: 31 | N36: =IF(SUM(K$6:K35)+t_i<=T,TRUE,FALSE) -> FALSE | O36: 31 | AH36: =IF(SUM(AD$6:AD35)+t_j<=T,TRUE,FALSE) -> FALSE
B37: Swap Conventions | D37: 32 | N37: =IF(SUM(K$6:K36)+t_i<=T,TRUE,FALSE) -> FALSE | O37: 32 | AH37: =IF(SUM(AD$6:AD36)+t_j<=T,TRUE,FALSE) -> FALSE
B38: Pay / Receive Indicator | D38: 33 | I38: =IF(N38,N,"") ->  | J38: =IF(N38,r_fixed,"") ->  | K38: =IF(N38,t_i,"") ->  | L38: =IF(N38,IF(SetDiscFactToOne,1,VLOOKUP(G38,INDIRECT(DiscountCurve),2,TRUE)),"") ->  | M38: =IF(N38,I38*J38*K38*L38,"") ->  | N38: =IF(SUM(K$6:K37)+t_i<=T,TRUE,FALSE) -> FALSE | O38: 33 | P38: =IF(AH38,IF(FixingInArrears,R38,Q38)-$C$19,"") ->  | R38: =IF(AH38,Q38+AD38*365.25,"") ->  | S38: =IF(AH38,R38,"") ->  | U38: =IF(AH38,N,"") ->  | V38: =IF(AH38,VLOOKUP(P38,INDIRECT(ForecastCurve),2,TRUE),"") ->  | W38: =IF(AH38,IF(ISNUMBER(LogNormalVol),(V38*(1+AN38*V38*EXP(LogNormalVol*LogNormalVol*T38))/(1+AN38*V38))-V38,0),"") ->  | X38: =IF(AH38,((V38+$C$22)*(1+AN38*(V38+$C$22)*(EXP(ShiftedLogNormalVol*ShiftedLogNormalVol*T38)+2*V38*$C$22+$C$22*$C$22))/(1+AN38*(V38+$C$22)))-(V38+$C$22),"") ->  | Y38: =IF(AH38,V38*(1+(AN38*NormalVol*NormalVol*T38)/(V38*(1+AN38*V38)))-V38,"") ->  | Z38: =IF(AH38,IF(ConvexityMethod="LOGNORMAL",W38,IF(ConvexityMethod="SHIFTED-LOGNORMAL",X38,IF(ConvexityMethod="NORMAL",Y38,""))),"") ->  | AA38: =IF(AH38,V38+Z38,"") ->  | AB38: =IF(AH38,s,"") ->  | AC38: =IF(AH38,AA38+(AB38*0.0001),"") ->  | AD38: =IF(AH38,t_j,"") ->  | AE38: =IF(AH38,IF(SetDiscFactToOne,1,VLOOKUP(S38,INDIRECT(DiscountCurve),2,TRUE)),"") ->  | AF38: =IF(AH38,U38*(V38+AB38)*AD38*AE38,"") ->  | AG38: =IF(AH38,U38*AC38*AD38*AE38,"") ->  | AH38: =IF(SUM(AD$6:AD37)+t_j<=T,TRUE,FALSE) -> FALSE | AK38: =IF(AH38,V38-AJ38,"") ->  | AL38: =IF(AH38,AJ38+AK38,"") ->  | AM38: =IF(AH38,(P38-Q38)/365.25,"") ->  | AN38: =IF(AH38,AM38*(AJ38+(AM38/AD38)*AK38)/AL38,"") -> 
B39: Phi, f | C39: =IF(C5="PAYER",-1,1) -> -1 | D39: 34 | H39: =IF(N39,H38+t_i,"") ->  | N39: =IF(SUM(K$6:K38)+t_i<=T,TRUE,FALSE) -> FALSE | O39: 34 | Q39: =IF(AH39,R38,"") ->  | T39: =IF(AH39,T38+t_j,"") ->  | AH39: =IF(SUM(AD$6:AD38)+t_j<=T,TRUE,FALSE) -> FALSE | AJ39: =IF(AH39,((AE38/AE39)-1)/AD39,"") -> 
D40: 35 | N40: =IF(SUM(K$6:K39)+t_i<=T,TRUE,FALSE) -> FALSE | O40: 35 | AH40: =IF(SUM(AD$6:AD39)+t_j<=T,TRUE,FALSE) -> FALSE
B41: Use Market Standard Conventions | D41: 36 | N41: =IF(SUM(K$6:K40)+t_i<=T,TRUE,FALSE) -> FALSE | O41: 36 | AH41: =IF(SUM(AD$6:AD40)+t_j<=T,TRUE,FALSE) -> FALSE
B42: Override Mkt Freq | C42: =Approximate -> FALSE | D42: 37 | N42: =IF(SUM(K$6:K41)+t_i<=T,TRUE,FALSE) -> FALSE | O42: 37 | AH42: =IF(SUM(AD$6:AD41)+t_j<=T,TRUE,FALSE) -> FALSE
D43: 38 | N43: =IF(SUM(K$6:K42)+t_i<=T,TRUE,FALSE) -> FALSE | O43: 38 | AH43: =IF(SUM(AD$6:AD42)+t_j<=T,TRUE,FALSE) -> FALSE
B44: Fixed Leg | D44: 39 | N44: =IF(SUM(K$6:K43)+t_i<=T,TRUE,FALSE) -> FALSE | O44: 39 | AH44: =IF(SUM(AD$6:AD43)+t_j<=T,TRUE,FALSE) -> FALSE
B45: Market Freq | C45: =INDIRECT(Currency&".Fixed.Period") -> SEMI-ANNUAL | D45: 40 | N45: =IF(SUM(K$6:K44)+t_i<=T,TRUE,FALSE) -> FALSE | O45: 40 | AH45: =IF(SUM(AD$6:AD44)+t_j<=T,TRUE,FALSE) -> FALSE
B46: Selected Freq | C46: =IF(OverrideMarketFrequency,"ANNUAL",C45) -> SEMI-ANNUAL | D46: 41 | N46: =IF(SUM(K$6:K45)+t_i<=T,TRUE,FALSE) -> FALSE | O46: 41 | AH46: =IF(SUM(AD$6:AD45)+t_j<=T,TRUE,FALSE) -> FALSE
B47: Accrual Period | C47: =IF(C46="ANNUAL",1,IF(C46="SEMI-ANNUAL",0.5,IF(C46="QUARTERLY",0.25,1/12))) -> 0.5 | D47: 42 | N47: =IF(SUM(K$6:K46)+t_i<=T,TRUE,FALSE) -> FALSE | O47: 42 | AH47: =IF(SUM(AD$6:AD46)+t_j<=T,TRUE,FALSE) -> FALSE
D48: 43 | N48: =IF(SUM(K$6:K47)+t_i<=T,TRUE,FALSE) -> FALSE | O48: 43 | AH48: =IF(SUM(AD$6:AD47)+t_j<=T,TRUE,FALSE) -> FALSE
B49: Float Leg | D49: 44 | N49: =IF(SUM(K$6:K48)+t_i<=T,TRUE,FALSE) -> FALSE | O49: 44 | AH49: =IF(SUM(AD$6:AD48)+t_j<=T,TRUE,FALSE) -> FALSE
B50: Market Freq | C50: =INDIRECT(Currency&".Float.Period") -> QUARTERLY | D50: 45 | N50: =IF(SUM(K$6:K49)+t_i<=T,TRUE,FALSE) -> FALSE | O50: 45 | AH50: =IF(SUM(AD$6:AD49)+t_j<=T,TRUE,FALSE) -> FALSE
B51: Selected Freq | C51: =IF(OverrideMarketFrequency,"ANNUAL",C50) -> QUARTERLY | D51: 46 | N51: =IF(SUM(K$6:K50)+t_i<=T,TRUE,FALSE) -> FALSE | O51: 46 | AH51: =IF(SUM(AD$6:AD50)+t_j<=T,TRUE,FALSE) -> FALSE
B52: Accrual Period | C52: =IF(C51="ANNUAL",1,IF(C51="SEMI-ANNUAL",0.5,IF(C51="QUARTERLY",0.25,1/12))) -> 0.25 | D52: 47 | N52: =IF(SUM(K$6:K51)+t_i<=T,TRUE,FALSE) -> FALSE | O52: 47 | AH52: =IF(SUM(AD$6:AD51)+t_j<=T,TRUE,FALSE) -> FALSE
D53: 48 | N53: =IF(SUM(K$6:K52)+t_i<=T,TRUE,FALSE) -> FALSE | O53: 48 | AH53: =IF(SUM(AD$6:AD52)+t_j<=T,TRUE,FALSE) -> FALSE
B54: Swap Pricing & Risk Calculations | D54: 49 | N54: =IF(SUM(K$6:K53)+t_i<=T,TRUE,FALSE) -> FALSE | O54: 49 | AH54: =IF(SUM(AD$6:AD53)+t_j<=T,TRUE,FALSE) -> FALSE
B55: Swap Pricing | D55: 50 | N55: =IF(SUM(K$6:K54)+t_i<=T,TRUE,FALSE) -> FALSE | O55: 50 | AH55: =IF(SUM(AD$6:AD54)+t_j<=T,TRUE,FALSE) -> FALSE
B56: Fixed Leg PV | C56: =Phi*SUM(PVlets_Fixed) -> -46863.10002
B57: Float Leg PV | C57: =-Phi*SUM(PVlets_Float) -> 122866.0749
B58: Spread PV | C58: =-Phi*SUMPRODUCT(U6:U55,AB6:AB55,AD6:AD55,AE6:AE55)/10000 -> 0
B59: Total PV | C59: =PV_FixedLeg+PV_FloatLeg -> 76002.97486
B60: Par Rate, p | C60: =ABS(PV_FloatLeg)/Annuity_Fixed -> 0.02621808519
B62: Swap Pricing Without Convexity Adjustment
B63: Unadjusted Float PV | C63: =-Phi*SUM($AF$6:$AF$55) -> 122644.4107
B64: Unadjusted Total PV | C64: =PV_FixedLeg+PV_FloatLeg_Unadjusted -> 75781.31069
B65: Unadjusted Par Rate | C65: =ABS(PV_FloatLeg_Unadjusted)/Annuity_Fixed -> 0.02617078483
B67: Annuity Factors
B68: Annuity, AFixed | C68: =SUMPRODUCT(K6:K55,L6:L55) -> 4.686310002
B69: Annuity, AFloat | C69: =SUMPRODUCT(AD6:AD55,AE6:AE55) -> 4.700327442
B70: Annuity, ANFixed | C70: =SUMPRODUCT(K6:K55,L6:L55,I6:I55) -> 4686310.002
B71: Annuity, ANFloat | C71: =SUMPRODUCT(AD6:AD55,AE6:AE55,U6:U55) -> 4700327.442

Sheet Example Convexity
B2: Swap Trade Details | E2: USD SWAP 5Y TENOR | H2: Volatility, sLN | I2: Volatility, SSLN | J2: Volatility, nN
B3: Payer/Receiver | C3: PAYER | H3: 0.305 | I3: 0.305 | J3: 0.009125
B4: Currency | C4: USD
B5: Notional, N | C5: 1000000 | E5: TimeToExpiry | F5: Notional | G5: Natural Libor | H5: Lognormal | I5: Shifted-Lognormal | J5: Normal | K5: Adjusted Rate
B6: Fixed Rate, rFixed | C6: 0.01 | E6: tj | F6: N | G6: lj | H6: CCLN | I6: CCSLN | J6: CCN | K6: lj + CC
B7: Fixed Frequency | C7: SEMI-ANNUAL | E7: 0.25 | F7: 1000000 | G7: 0.0269601 | H7: 4.246832926e-06 | I7: 4.246832926e-06 | J7: 5.169260617e-06 | K7: =G7+H7 -> 0.02696434683
B8: Float Frequency | C8: QUARTERLY | E8: 0.5 | F8: 1000000 | G8: 0.0272608 | H8: 8.785699197e-06 | I8: 8.785699197e-06 | J8: 1.03377493e-05 | K8: 0.0272695857
B9: Libor Spread, s | C9: 0 | E9: 0.75 | F9: 1000000 | G9: 0.0271307 | H9: 1.3207645e-05 | I9: 1.3207645e-05 | J9: 1.55071249e-05 | K9: 0.02714390764
B10: Tenor, T | C10: 5 | E10: 1 | F10: 1000000 | G10: 0.0269557 | H10: 1.759060429e-05 | I10: 1.759060429e-05 | J10: 2.067706506e-05 | K10: 0.0269732906
E11: 1.25 | F11: 1000000 | G11: 0.0261807 | H11: 2.099296294e-05 | I11: 2.099296294e-05 | J11: 2.585130649e-05 | K11: 0.02620169296
E12: 1.5 | F12: 1000000 | G12: 0.0260071 | H12: 2.515664474e-05 | I12: 2.515664474e-05 | J12: 3.102290542e-05 | K12: 0.02603225664
B13: Libor In-Arrears | E13: 1.75 | F13: 1000000 | G13: 0.0261966 | H13: 3.013438144e-05 | I13: 3.013438144e-05 | J13: 3.619168616e-05 | K13: 0.02622673438
B14: FixingInArrears | C14: TRUE | E14: 2 | F14: 1000000 | G14: 0.0257993 | H14: 3.380802768e-05 | I14: 3.380802768e-05 | J14: 4.136600898e-05 | K14: 0.02583310803
B15: FixingLag (Days) | C15: 0 | E15: 2.25 | F15: 1000000 | G15: 0.0254009 | H15: 3.731762572e-05 | I15: 3.731762572e-05 | J15: 4.654136592e-05 | K15: 0.02543821763
B16: ConvexityAdjustment | C16: LOGNORMAL | E16: 2.5 | F16: 1000000 | G16: 0.0251804 | H16: 4.124375122e-05 | I16: 4.124375122e-05 | J16: 5.171546162e-05 | K16: 0.02522164375
B17: Volatility | C17: 0.305 | E17: 2.75 | F17: 1000000 | G17: 0.0251372 | H17: 4.576351884e-05 | I17: 4.576351884e-05 | J17: 5.688761833e-05 | K17: 0.02518296352
B18: ShiftSize | C18: 0 | E18: 3 | F18: 1000000 | G18: 0.0252453 | H18: 5.096809995e-05 | I18: 5.096809995e-05 | J18: 6.205755336e-05 | K18: 0.0252962681
B19: Convexity PV Impact | C19: 249.9789116 | E19: 3.25 | F19: 1000000 | G19: 0.0254004 | H19: 5.657938449e-05 | I19: 5.657938449e-05 | J19: 6.722642579e-05 | K19: 0.02545697938
B20: Convexity Par Rate Impact | C20: 5.33423763e-05 | E20: 3.5 | F20: 1000000 | G20: 0.0255765 | H20: 6.253726242e-05 | I20: 6.253726242e-05 | J20: 7.239452225e-05 | K20: 0.02563903726
E21: 3.75 | F21: 1000000 | G21: 0.0257721 | H21: 6.88702556e-05 | I21: 6.88702556e-05 | J21: 7.756179088e-05 | K21: 0.02584097026
B22: Swap Pricing | E22: 4 | F22: 1000000 | G22: 0.0259764 | H22: 7.555260863e-05 | I22: 7.555260863e-05 | J22: 8.272837864e-05 | K22: 0.02605195261
B23: Swap PV | C23: 76031.2896 | E23: 4.25 | F23: 1000000 | G23: 0.0261688 | H23: 8.247827155e-05 | I23: 8.247827155e-05 | J23: 8.789470184e-05 | K23: 0.02625127827
B24: Fixed Leg PV | C24: -46863.10002 | E24: 4.5 | F24: 1000000 | G24: 0.0263428 | H24: 8.959674959e-05 | I24: 8.959674959e-05 | J24: 9.306095658e-05 | K24: 0.02643239675
B25: Float Leg PV | C25: 122894.3896 | E25: 4.75 | F25: 1000000 | G25: 0.0264961 | H25: 9.687414739e-05 | I25: 9.687414739e-05 | J25: 9.82272698e-05 | K25: 0.02659297415
B26: Par Rate | C26: 0.02622412721 | E26: 5 | F26: 1000000 | G26: 0.0264961 | H26: 0.0001032558607 | I26: 0.0001032558607 | J26: 0.0001033971261 | K26: 0.02659935586

Sheet Diagrams
I3: Natural Libor Cashflows - Fixing In-Advance
L8: N L2 t3
F9: N L0 t1
I10: N L1 t2
O11: N L3 t4
F12: Cashflow1 | I12: Cashflow2 | L12: Cashflow3 | O12: Cashflow4
D13: t0 | G13: t1 | J13: t2 | M13: t3 | P13: t4
R14: time, t
C15: Fixing Date | F15: Payment Date, T
D17: Accrual Period, t1
I20: Unnatural Libor Cashflows - Fixing In-Arrears
L25: N L3 t3
F26: N L1 t1
I27: N L2 t2
O28: N L4 t4
F29: Cashflow1 | I29: Cashflow2 | L29: Cashflow3 | O29: Cashflow4
D30: t0 | G30: t1 | J30: t2 | M30: t3 | P30: t4
R31: time, t
F32: Fixing Date = | H32: Natural Payment Date, S
E33: Unnatural Payment Date, T
D35: Accrual Period, t1
B41: Forward Libor Rates, L
I45: L3ML(t,T)
G49: b(T)
I50: LOIS(t,T)
F61: Maturity, T

Sheet Static Replication
B2: Increment | D2: EvaluationPt
B3: 1 | D3: 0
B5: Strike, K | C5: Payoff, f(S) | D5: EvaluationPt | E5: Constant | F5: Linear Term | G5: Non-Linear Term
B6: -10 | C6: =10+B6+MAX(0-B6,0)*0.02*(B6^2)+MAX(B6-0,0)*-0.01*(B6^2) -> 20 | D6: =IF(B6=$D$3,VLOOKUP($D$3,$B$6:$C$26,2,0),NA()) ->  | E6: =VLOOKUP($D$3,$B$6:$C$26,2,0) -> 10 | F6: =E6+((VLOOKUP($D$3+$B$3,$B$6:$C$26,2,0)-VLOOKUP($D$3,$B$6:$C$26,2,0))/$B$3)*(B6-$D$3) -> 0.1 | G6: =C6-E6-F6 -> 9.9
B7: -9 | C7: 15.58 | E7: 10 | F7: 1.09 | G7: =C7-E7-F7 -> 4.49
B8: -8 | C8: 12.24 | E8: 10 | F8: 2.08 | G8: 0.16
B9: -7 | C9: 9.86 | E9: 10 | F9: 3.07 | G9: -3.21
B10: -6 | C10: 8.32 | E10: 10 | F10: 4.06 | G10: -5.74
B11: -5 | C11: 7.5 | E11: 10 | F11: 5.05 | G11: -7.55
B12: -4 | C12: 7.28 | E12: 10 | F12: 6.04 | G12: -8.76
B13: -3 | C13: 7.54 | E13: 10 | F13: 7.03 | G13: -9.49
B14: -2 | C14: 8.16 | E14: 10 | F14: 8.02 | G14: -9.86
B15: -1 | C15: 9.02 | E15: 10 | F15: 9.01 | G15: -9.99
B16: 0 | C16: 10 | D16: 10 | E16: 10 | F16: 10 | G16: -10
B17: 1 | C17: 10.99 | E17: 10 | F17: 10.99 | G17: -10
B18: 2 | C18: 11.92 | E18: 10 | F18: 11.98 | G18: -10.06
B19: 3 | C19: 12.73 | E19: 10 | F19: 12.97 | G19: -10.24
B20: 4 | C20: 13.36 | E20: 10 | F20: 13.96 | G20: -10.6
B21: 5 | C21: 13.75 | E21: 10 | F21: 14.95 | G21: -11.2
B22: 6 | C22: 13.84 | E22: 10 | F22: 15.94 | G22: -12.1
B23: 7 | C23: 13.57 | E23: 10 | F23: 16.93 | G23: -13.36
B24: 8 | C24: 12.88 | E24: 10 | F24: 17.92 | G24: -15.04
B25: 9 | C25: 11.71 | E25: 10 | F25: 18.91 | G25: -17.2
B26: 10 | C26: 10 | E26: 10 | F26: 19.9 | G26: -19.9
B29: x | C29: Heaviside, H(x) | D29: Dirac Delta, d(x)
B30: -1 | C30: =IF(B30<0,0,1) -> 0 | D30: 0
B31: -0.9 | C31: =IF(B31<0,0,1) -> 0 | D31: =IF(B31=0,1,0) -> 0
B32: -0.8 | C32: 0 | D32: 0
B33: -0.7 | C33: 0 | D33: 0
B34: -0.6 | C34: 0 | D34: 0
B35: -0.5 | C35: 0 | D35: 0
B36: -0.4 | C36: 0 | D36: 0
B37: -0.3 | C37: 0 | D37: 0
B38: -0.2 | C38: 0 | D38: 0
B39: -0.1 | C39: 0 | D39: 0
B40: 0 | C40: 1 | D40: 1
B41: 0.1 | C41: 1 | D41: 0
B42: 0.2 | C42: 1 | D42: 0
B43: 0.3 | C43: 1 | D43: 0
B44: 0.4 | C44: 1 | D44: 0
B45: 0.5 | C45: 1 | D45: 0
B46: 0.6 | C46: 1 | D46: 0
B47: 0.7 | C47: 1 | D47: 0
B48: 0.8 | C48: 1 | D48: 0
B49: 0.9 | C49: 1 | D49: 0
B50: 1 | C50: 1 | D50: 0
B53: Increment | D53: EvaluationPt
B54: 1 | D54: 0
B56: Strike, K | C56: Payoff, h(S) | D56: EvaluationPt | E56: Constant | F56: Linear Term | G56: Non-Linear Term
B57: -10 | C57: =10+MAX(B57-0,0) -> 10 | D57: =IF(B57=$D$54,VLOOKUP($D$54,$B$57:$C$77,2,0),NA()) ->  | E57: =VLOOKUP($D$54,$B$57:$C$77,2,0) -> 10 | F57: =VLOOKUP($D$54,$B$57:$C$77,2,0)+B57+2*(VLOOKUP(0,$B$57:$C$77,2,0)-VLOOKUP($D$54,$B$57:$C$77,2,0)) -> 0 | G57: 0
B58: -9 | C58: 10 | E58: 10 | F58: 1 | G58: 0
B59: -8 | C59: 10 | E59: 10 | F59: 2 | G59: 0
B60: -7 | C60: 10 | E60: 10 | F60: 3 | G60: 0
B61: -6 | C61: 10 | E61: 10 | F61: 4 | G61: 0
B62: -5 | C62: 10 | E62: 10 | F62: 5 | G62: 0
B63: -4 | C63: 10 | E63: 10 | F63: 6 | G63: 0
B64: -3 | C64: 10 | E64: 10 | F64: 7 | G64: 0
B65: -2 | C65: 10 | E65: 10 | F65: 8 | G65: 0
B66: -1 | C66: 10 | E66: 10 | F66: 9 | G66: 0
B67: 0 | C67: 10 | D67: 10 | E67: 10 | F67: 10 | G67: 0
B68: 1 | C68: 11 | E68: 10 | F68: 11 | G68: 0
B69: 2 | C69: 12 | E69: 10 | F69: 12 | G69: 0
B70: 3 | C70: 13 | E70: 10 | F70: 13 | G70: 0
B71: 4 | C71: 14 | E71: 10 | F71: 14 | G71: 0
B72: 5 | C72: 15 | E72: 10 | F72: 15 | G72: 0
B73: 6 | C73: 16 | E73: 10 | F73: 16 | G73: 0
B74: 7 | C74: 17 | E74: 10 | F74: 17 | G74: 0
B75: 8 | C75: 18 | E75: 10 | F75: 18 | G75: 0
B76: 9 | C76: 19 | E76: 10 | F76: 19 | G76: 0
B77: 10 | C77: 20 | E77: 10 | F77: 20 | G77: 0

Sheet Market Convexity (hidden)
B2: LIBOR IN-ARREARS: BLOOMBERG VCUB VOL (APPROX 31.5% FLAT VOL) | Q2: LIBOR IN-ARREARS: VOL 20% | AF2: LIBOR IN-ARREARS: VOL 10% | AU2: LIBOR IN-ARREARS: VOL 0%
